{"text_format":"1","workbook":"xlsx","n_sheets":10,"sheets":["Instructions","ScoreBoard","Score Log","Players","Players League 1","Players League 2","Players League 3","Players League 4","Players League 5","Backup Jucatori"],"not_rendered":{"charts":0,"images":0,"macros":1,"external_links":0,"defined_names":50,"comments":0,"pivot_tables":0},"unopened":[],"bounds":{"document_bytes":16777216,"sheet_cells":100000,"rows_first":2000,"rows_last":500,"rows_between":2000,"halvings":0,"cell_chars":16384,"cell_head_chars":4096},"cells_cut":0,"cells_raw":0,"read":"whole","date_system":"1900"}

{"sheet":"Instructions","index":0,"n_rows":14,"n_cols":2,"rows_kept":14,"cut":false,"hidden":false,"merged":[]}
[]
[null,"To select new Teams, press the New Teams button from scoreboard."]
[null,"Game Schemas:"]
[null,"There are 2 available Schemas, for teams with 3 or 4 players"]
[null,"Selecting New Teams:"]
[null," - Select in this order: League, Team, ScoreBoard(A-D sau V-Z), Team players and the letter for each player."]
[null," - Press Prepare and Display ScoreBoard."]
[null," - From ScoreBoard, you can select the game to arbitrate; in the window that shows after pressing the  Arbitrate button, you have the option to  arbitrate the game, or to  fill the result to log sheet, for a specific game."]
[null," - From ScoreBoard sheet, you can choose anytime the players for double; after the players are selected, you can arbitrate this game."]
[null,"Arbitration:"]
[null," - To add points to a player, you can use the keyboard to type the points, OR, as an alternative, you can Right click with your mouse in cell D4 or F4, coresponding to each player points."]
[null," - To decrease points to a player (for corrections, if necessary), you can use the keyboard to type the points, OR, as an alternative, you can Double click with your mouse in cell D4 or F4, coresponding to each player points."]
[null," - At the end of each game, the application will automatically switch the score (the players will switch table sides) and when one player wins, the score is automatically written to log sheet, the ScoreBoard is resetted, you can pick a new game to arbitrate."]
[null," - At the end of the meeting, the ScoreBoard Log can be saved in PDF format, pressing the Save PDF button from ScoreBoard."]

{"sheet":"ScoreBoard","index":1,"n_rows":9,"n_cols":7153,"rows_kept":9,"cut":false,"hidden":false,"merged":[[5,1,5,3],[5,5,5,7],[1,1,1,3],[1,5,1,7],[3,3,4,3],[3,5,4,5]]}
[]
[]
[null,"SET",null,"POINTS",null,"POINTS",null,"SET"]
[null,0,null,0,null,0,null,0]
[]
[]
[]
[]
[null,null,null,null,null,null,null,null,null,null,null,null,null,null,null,null,null,null,null,null,null,null,null,null,null,null,null,null,null,null,null,null,null,null,null,null,null,null,null,null,null,null,null,null,null,null,null,null,null,null,null,null,null,null,null,null,null,null,null,null,null,null,null,null,null,null,null,null,null,null,null,null,null,null,null,null,null,null,null,null,null,null,null,null,null,null,null,null,null,null,null,null,null,null,null,null,null,null,null,null,null,null,null,null,null,null,null,null,null,null,null,null,null,null,null,null,null,null,null,null,null,null,null,null,null,null,null,null,null,null,null,null,null,null,null,null,null,null,null,null,null,null,null,null,null,null,null,null,null,null,null,null,null,null,null,null,null,null,null,null,null,null,null,null,null,null,null,null,null,null,null,null,null,null,null,null,null,null,null,null,null,null,null,null,null,null,null,null,null,null,null,null,null,null,null,null,null,null,null,null,null,null,null,null,null,null,null,null,null,null,null,null,null,null,null,null,null,null,null,null,null,null,null,null,null,null,null,null,null,null,null,null,null,null,null,null,null,null,null,null,null,null,null,null,null,null,null,null,null,null,null,null,null,null,null,null,null,null,null,null,null,null,null,null,null,null,null,null,null,null,null,null,null,null,null,null,null,null,null,null,null,null,null,null,null,null,null,null,null,null,null,null,null,null,null,null,null,null,null,null,null,null,null,null,null,null,null,null,null,null,null,null,null,null,null,null,null,null,null,null,null,null,null,null,null,null,null,null,null,null,null,null,null,null,null,null,null,null,null,null,null,null,null,null,null,null,null,null,null,null,null,null,null,null,null,null,null,null,null,null,null,null,null,null,null,null,null,null,null,null,null,null,null,null,null,null,null,null,null,null,null,null,null,null,null,null,null,null,null,null,null,null,null,null,null,null,null,null,null,null,null,null,null,null,null,null,null,null,null,null,null,null,null,null,null,null,null,null,null,null,null,null,null,null,null,null,null,null,null,null,null,null,null,null,null,null,null,null,null,null,null,null,null,null,null,null,null,null,null,null,null,null,null,null,null,null,null,null,null,null,null,null,null,null,null,null,null,null,null,null,null,null,null,null,null,null,null,null,null,null,null,null,null,null,null,null,null,null,null,null,null,null,null,null,null,null,null,null,null,null,null,null,null,null,null,null,null,null,null,null,null,null,null,null,null,null,null,null,null,null,null,null,null,null,null,null,null,null,null,null,null,null,null,null,null,null,null,null,null,null,null,null,null,null,null,null,null,null,null,null,null,null,null,null,null,null,null,null,null,null,null,null,null,null,null,null,null,null,null,null,null,null,null,null,null,null,null,null,null,null,null,null,null,null,null,null,null,null,null,null,null,null,null,null,null,null,null,null,null,null,null,null,null,null,null,null,null,null,null,null,null,null,null,null,null,null,null,null,null,null,null,null,null,null,null,null,null,null,null,null,null,null,null,null,null,null,null,null,null,null,null,null,null,null,null,null,null,null,null,null,null,null,null,null,null,null,null,null,null,null,null,null,null,null,null,null,null,null,null,null,null,null,null,null,null,null,null,null,null,null,null,null,null,null,null,null,null,null,null,null,null,null,null,null,null,null,null,null,null,null,null,null,null,null,null,null,null,null,null,null,null,null,null,null,null,null,null,null,null,null,null,null,null,null,null,null,null,null,null,null,null,null,null,null,null,null,null,null,null,null,null,null,null,null,null,null,null,null,null,null,null,null,null,null,null,null,null,null,null,null,null,null,null,null,null,null,null,null,null,null,null,null,null,null,null,null,null,null,null,null,null,null,null,null,null,null,null,null,null,null,null,null,null,null,null,null,null,null,null,null,null,null,null,null,null,null,null,null,null,null,null,null,null,null,null,null,null,null,null,null,null,null,null,null,null,null,null,null,null,null,null,null,null,null,null,null,null,null,null,null,null,null,null,null,null,null,null,null,null,null,null,null,null,null,null,null,null,null,null,null,null,null,null,null,null,null,null,null,null,null,null,null,null,null,null,null,null,null,null,null,null,null,null,null,null,null,null,null,null,null,null,null,null,null,null,null,null,null,null,null,null,null,null,null,null,null,null,null,null,null,null,null,null,null,null,null,null,null,null,null,null,null,null,null,null,null,null,null,null,null,null,null,null,null,null,null,null,null,null,null,null,null,null,null,null,null,null,null,null,null,null,null,null,null,null,null,null,null,null,null,null,null,null,null,null,null,null,null,null,null,null,null,null,null,null,null,null,null,null,null,null,null,null,null,null,null,null,null,null,null,null,null,null,null,null,null,null,null,null,null,null,null,null,null,null,null,null,null,null,null,null,null,null,null,null,null,null,null,null,null,null,null,null,null,null,null,null,null,null,null,null,null,null,null,null,null,null,null,null,null,null,null,null,null,null,null,null,null,null,null,null,null,null,null,null,null,null,null,null,null,null,null,null,null,null,null,null,null,null,null,null,null,null,null,null,null,null,null,null,null,null,null,null,null,null,null,null,null,null,null,null,null,null,null,null,null,null,null,null,null,null,null,null,null,null,null,null,null,null,null,null,null,null,null,null,null,null,null,null,null,null,null,null,null,null,null,null,null,null,null,null,null,null,null,null,null,null,null,null,null,null,null,null,null,null,null,null,null,null,null,null,null,null,null,null,null,null,null,null,null,null,null,null,null,null,null,null,null,null,null,null,null,null,null,null,null,null,null,null,null,null,null,null,null,null,null,null,null,null,null,null,null,null,null,null,null,null,null,null,null,null,null,null,null,null,null,null,null,null,null,null,null,null,null,null,null,null,null,null,null,null,null,null,null,null,null,null,null,null,null,null,null,null,null,null,null,null,null,null,null,null,null,null,null,null,null,null,null,null,null,null,null,null,null,null,null,null,null,null,null,null,null,null,null,null,null,null,null,null,null,null,null,null,null,null,null,null,null,null,null,null,null,null,null,null,null,null,null,null,null,null,null,null,null,null,null,null,null,null,null,null,null,null,null,null,null,null,null,null,null,null,null,null,null,null,null,null,null,null,null,null,null,null,null,null,null,null,null,null,null,null,null,null,null,null,null,null,null,null,null,null,null,null,null,null,null,null,null,null,null,null,null,null,null,null,null,null,null,null,null,null,null,null,null,null,null,null,null,null,null,null,null,null,null,null,null,null,null,null,null,null,null,null,null,null,null,null,null,null,null,null,null,null,null,null,null,null,null,null,null,null,null,null,null,null,null,null,null,null,null,null,null,null,null,null,null,null,null,null,null,null,null,null,null,null,null,null,null,null,null,null,null,null,null,null,null,null,null,null,null,null,null,null,null,null,null,null,null,null,null,null,null,null,null,null,null,null,null,null,null,null,null,null,null,null,null,null,null,null,null,null,null,null,null,null,null,null,null,null,null,null,null,null,null,null,null,null,null,null,null,null,null,null,null,null,null,null,null,null,null,null,null,null,null,null,null,null,null,null,null,null,null,null,null,null,null,null,null,null,null,null,null,null,null,null,null,null,null,null,null,null,null,null,null,null,null,null,null,null,null,null,null,null,null,null,null,null,null,null,null,null,null,null,null,null,null,null,null,null,null,null,null,null,null,null,null,null,null,null,null,null,null,null,null,null,null,null,null,null,null,null,null,null,null,null,null,null,null,null,null,null,null,null,null,null,null,null,null,null,null,null,null,null,null,null,null,null,null,null,null,null,null,null,null,null,null,null,null,null,null,null,null,null,null,null,null,null,null,null,null,null,null,null,null,null,null,null,null,null,null,null,null,null,null,null,null,null,null,null,null,null,null,null,null,null,null,null,null,null,null,null,null,null,null,null,null,null,null,null,null,null,null,null,null,null,null,null,null,null,null,null,null,null,null,null,null,null,null,null,null,null,null,null,null,null,null,null,null,null,null,null,null,null,null,null,null,null,null,null,null,null,null,null,null,null,null,null,null,null,null,null,null,null,null,null,null,null,null,null,null,null,null,null,null,null,null,null,null,null,null,null,null,null,null,null,null,null,null,null,null,null,null,null,null,null,null,null,null,null,null,null,null,null,null,null,null,null,null,null,null,null,null,null,null,null,null,null,null,null,null,null,null,null,null,null,null,null,null,null,null,null,null,null,null,null,null,null,null,null,null,null,null,null,null,null,null,null,null,null,null,null,null,null,null,null,null,null,null,null,null,null,null,null,null,null,null,null,null,null,null,null,null,null,null,null,null,null,null,null,null,null,null,null,null,null,null,null,null,null,null,null,null,null,null,null,null,null,null,null,null,null,null,null,null,null,null,null,null,null,null,null,null,null,null,null,null,null,null,null,null,null,null,null,null,null,null,null,null,null,null,null,null,null,null,null,null,null,null,null,null,null,null,null,null,null,null,null,null,null,null,null,null,null,null,null,null,null,null,null,null,null,null,null,null,null,null,null,null,null,null,null,null,null,null,null,null,null,null,null,null,null,null,null,null,null,null,null,null,null,null,null,null,null,null,null,null,null,null,null,null,null,null,null,null,null,null,null,null,null,null,null,null,null,null,null,null,null,null,null,null,null,null,null,null,null,null,null,null,null,null,null,null,null,null,null,null,null,null,null,null,null,null,null,null,null,null,null,null,null,null,null,null,null,null,null,null,null,null,null,null,null,null,null,null,null,null,null,null,null,null,null,null,null,null,null,null,null,null,null,null,null,null,null,null,null,null,null,null,null,null,null,null,null,null,null,null,null,null,null,null,null,null,null,null,null,null,null,null,null,null,null,null,null,null,null,null,null,null,null,null,null,null,null,null,null,null,null,null,null,null,null,null,null,null,null,null,null,null,null,null,null,null,null,null,null,null,null,null,null,null,null,null,null,null,null,null,null,null,null,null,null,null,null,null,null,null,null,null,null,null,null,null,null,null,null,null,null,null,null,null,null,null,null,null,null,null,null,null,null,null,null,null,null,null,null,null,null,null,null,null,null,null,null,null,null,null,null,null,null,null,null,null,null,null,null,null,null,null,null,null,null,null,null,null,null,null,null,null,null,null,null,null,null,null,null,null,null,null,null,null,null,null,null,null,null,null,null,null,null,null,null,null,null,null,null,null,null,null,null,null,null,null,null,null,null,null,null,null,null,null,null,null,null,null,null,null,null,null,null,null,null,null,null,null,null,null,null,null,null,null,null,null,null,null,null,null,null,null,null,null,null,null,null,null,null,null,null,null,null,null,null,null,null,null,null,null,null,null,null,null,null,null,null,null,null,null,null,null,null,null,null,null,null,null,null,null,null,null,null,null,null,null,null,null,null,null,null,null,null,null,null,null,null,null,null,null,null,null,null,null,null,null,null,null,null,null,null,null,null,null,null,null,null,null,null,null,null,null,null,null,null,null,null,null,null,null,null,null,null,null,null,null,null,null,null,null,null,null,null,null,null,null,null,null,null,null,null,null,null,null,null,null,null,null,null,null,null,null,null,null,null,null,null,null,null,null,null,null,null,null,null,null,null,null,null,null,null,null,null,null,null,null,null,null,null,null,null,null,null,null,null,null,null,null,null,null,null,null,null,null,null,null,null,null,null,null,null,null,null,null,null,null,null,null,null,null,null,null,null,null,null,null,null,null,null,null,null,null,null,null,null,null,null,null,null,null,null,null,null,null,null,null,null,null,null,null,null,null,null,null,null,null,null,null,null,null,null,null,null,null,null,null,null,null,null,null,null,null,null,null,null,null,null,null,null,null,null,null,null,null,null,null,null,null,null,null,null,null,null,null,null,null,null,null,null,null,null,null,null,null,null,null,null,null,null,null,null,null,null,null,null,null,null,null,null,null,null,null,null,null,null,null,null,null,null,null,null,null,null,null,null,null,null,null,null,null,null,null,null,null,null,null,null,null,null,null,null,null,null,null,null,null,null,null,null,null,null,null,null,null,null,null,null,null,null,null,null,null,null,null,null,null,null,null,null,null,null,null,null,null,null,null,null,null,null,null,null,null,null,null,null,null,null,null,null,null,null,null,null,null,null,null,null,null,null,null,null,null,null,null,null,null,null,null,null,null,null,null,null,null,null,null,null,null,null,null,null,null,null,null,null,null,null,null,null,null,null,null,null,null,null,null,null,null,null,null,null,null,null,null,null,null,null,null,null,null,null,null,null,null,null,null,null,null,null,null,null,null,null,null,null,null,null,null,null,null,null,null,null,null,null,null,null,null,null,null,null,null,null,null,null,null,null,null,null,null,null,null,null,null,null,null,null,null,null,null,null,null,null,null,null,null,null,null,null,null,null,null,null,null,null,null,null,null,null,null,null,null,null,null,null,null,null,null,null,null,null,null,null,null,null,null,null,null,null,null,null,null,null,null,null,null,null,null,null,null,null,null,null,null,null,null,null,null,null,null,null,null,null,null,null,null,null,null,null,null,null,null,null,null,null,null,null,null,null,null,null,null,null,null,null,null,null,null,null,null,null,null,null,null,null,null,null,null,null,null,null,null,null,null,null,null,null,null,null,null,null,null,null,null,null,null,null,null,null,null,null,null,null,null,null,null,null,null,null,null,null,null,null,null,null,null,null,null,null,null,null,null,null,null,null,null,null,null,null,null,null,null,null,null,null,null,null,null,null,null,null,null,null,null,null,null,null,null,null,null,null,null,null,null,null,null,null,null,null,null,null,null,null,null,null,null,null,null,null,null,null,null,null,null,null,null,null,null,null,null,null,null,null,null,null,null,null,null,null,null,null,null,null,null,null,null,null,null,null,null,null,null,null,null,null,null,null,null,null,null,null,null,null,null,null,null,null,null,null,null,null,null,null,null,null,null,null,null,null,null,null,null,null,null,null,null,null,null,null,null,null,null,null,null,null,null,null,null,null,null,null,null,null,null,null,null,null,null,null,null,null,null,null,null,null,null,null,null,null,null,null,null,null,null,null,null,null,null,null,null,null,null,null,null,null,null,null,null,null,null,null,null,null,null,null,null,null,null,null,null,null,null,null,null,null,null,null,null,null,null,null,null,null,null,null,null,null,null,null,null,null,null,null,null,null,null,null,null,null,null,null,null,null,null,null,null,null,null,null,null,null,null,null,null,null,null,null,null,null,null,null,null,null,null,null,null,null,null,null,null,null,null,null,null,null,null,null,null,null,null,null,null,null,null,null,null,null,null,null,null,null,null,null,null,null,null,null,null,null,null,null,null,null,null,null,null,null,null,null,null,null,null,null,null,null,null,null,null,null,null,null,null,null,null,null,null,null,null,null,null,null,null,null,null,null,null,null,null,null,null,null,null,null,null,null,null,null,null,null,null,null,null,null,null,null,null,null,null,null,null,null,null,null,null,null,null,null,null,null,null,null,null,null,null,null,null,null,null,null,null,null,null,null,null,null,null,null,null,null,null,null,null,null,null,null,null,null,null,null,null,null,null,null,null,null,null,null,null,null,null,null,null,null,null,null,null,null,null,null,null,null,null,null,null,null,null,null,null,null,null,null,null,null,null,null,null,null,null,null,null,null,null,null,null,null,null,null,null,null,null,null,null,null,null,null,null,null,null,null,null,null,null,null,null,null,null,null,null,null,null,null,null,null,null,null,null,null,null,null,null,null,null,null,null,null,null,null,null,null,null,null,null,null,null,null,null,null,null,null,null,null,null,null,null,null,null,null,null,null,null,null,null,null,null,null,null,null,null,null,null,null,null,null,null,null,null,null,null,null,null,null,null,null,null,null,null,null,null,null,null,null,null,null,null,null,null,null,null,null,null,null,null,null,null,null,null,null,null,null,null,null,null,null,null,null,null,null,null,null,null,null,null,null,null,null,null,null,null,null,null,null,null,null,null,null,null,null,null,null,null,null,null,null,null,null,null,null,null,null,null,null,null,null,null,null,null,null,null,null,null,null,null,null,null,null,null,null,null,null,null,null,null,null,null,null,null,null,null,null,null,null,null,null,null,null,null,null,null,null,null,null,null,null,null,null,null,null,null,null,null,null,null,null,null,null,null,null,null,null,null,null,null,null,null,null,null,null,null,null,null,null,null,null,null,null,null,null,null,null,null,null,null,null,null,null,null,null,null,null,null,null,null,null,null,null,null,null,null,null,null,null,null,null,null,null,null,null,null,null,null,null,null,null,null,null,null,null,null,null,null,null,null,null,null,null,null,null,null,null,null,null,null,null,null,null,null,null,null,null,null,null,null,null,null,null,null,null,null,null,null,null,null,null,null,null,null,null,null,null,null,null,null,null,null,null,null,null,null,null,null,null,null,null,null,null,null,null,null,null,null,null,null,null,null,null,null,null,null,null,null,null,null,null,null,null,null,null,null,null,null,null,null,null,null,null,null,null,null,null,null,null,null,null,null,null,null,null,null,null,null,null,null,null,null,null,null,null,null,null,null,null,null,null,null,null,null,null,null,null,null,null,null,null,null,null,null,null,null,null,null,null,null,null,null,null,null,null,null,null,null,null,null,null,null,null,null,null,null,null,null,null,null,null,null,null,null,null,null,null,null,null,null,null,null,null,null,null,null,null,null,null,null,null,null,null,null,null,null,null,null,null,null,null,null,null,null,null,null,null,null,null,null,null,null,null,null,null,null,null,null,null,null,null,null,null,null,null,null,null,null,null,null,null,null,null,null,null,null,null,null,null,null,null,null,null,null,null,null,null,null,null,null,null,null,null,null,null,null,null,null,null,null,null,null,null,null,null,null,null,null,null,null,null,null,null,null,null,null,null,null,null,null,null,null,null,null,null,null,null,null,null,null,null,null,null,null,null,null,null,null,null,null,null,null,null,null,null,null,null,null,null,null,null,null,null,null,null,null,null,null,null,null,null,null,null,null,null,null,null,null,null,null,null,null,null,null,null,null,null,null,null,null,null,null,null,null,null,null,null,null,null,null,null,null,null,null,null,null,null,null,null,null,null,null,null,null,null,null,null,null,null,null,null,null,null,null,null,null,null,null,null,null,null,null,null,null,null,null,null,null,null,null,null,null,null,null,null,null,null,null,null,null,null,null,null,null,null,null,null,null,null,null,null,null,null,null,null,null,null,null,null,null,null,null,null,null,null,null,null,null,null,null,null,null,null,null,null,null,null,null,null,null,null,null,null,null,null,null,null,null,null,null,null,null,null,null,null,null,null,null,null,null,null,null,null,null,null,null,null,null,null,null,null,null,null,null,null,null,null,null,null,null,null,null,null,null,null,null,null,null,null,null,null,null,null,null,null,null,null,null,null,null,null,null,null,null,null,null,null,null,null,null,null,null,null,null,null,null,null,null,null,null,null,null,null,null,null,null,null,null,null,null,null,null,null,null,null,null,null,null,null,null,null,null,null,null,null,null,null,null,null,null,null,null,null,null,null,null,null,null,null,null,null,null,null,null,null,null,null,null,null,null,null,null,null,null,null,null,null,null,null,null,null,null,null,null,null,null,null,null,null,null,null,null,null,null,null,null,null,null,null,null,null,null,null,null,null,null,null,null,null,null,null,null,null,null,null,null,null,null,null,null,null,null,null,null,null,null,null,null,null,null,null,null,null,null,null,null,null,null,null,null,null,null,null,null,null,null,null,null,null,null,null,null,null,null,null,null,null,null,null,null,null,null,null,null,null,null,null,null,null,null,null,null,null,null,null,null,null,null,null,null,null,null,null,null,null,null,null,null,null,null,null,null,null,null,null,null,null,null,null,null,null,null,null,null,null,null,null,null,null,null,null,null,null,null,null,null,null,null,null,null,null,null,null,null,null,null,null,null,null,null,null,null,null,null,null,null,null,null,null,null,null,null,null,null,null,null,null,null,null,null,null,null,null,null,null,null,null,null,null,null,null,null,null,null,null,null,null,null,null,null,null,null,null,null,null,null,null,null,null,null,null,null,null,null,null,null,null,null,null,null,null,null,null,null,null,null,null,null,null,null,null,null,null,null,null,null,null,null,null,null,null,null,null,null,null,null,null,null,null,null,null,null,null,null,null,null,null,null,null,null,null,null,null,null,null,null,null,null,null,null,null,null,null,null,null,null,null,null,null,null,null,null,null,null,null,null,null,null,null,null,null,null,null,null,null,null,null,null,null,null,null,null,null,null,null,null,null,null,null,null,null,null,null,null,null,null,null,null,null,null,null,null,null,null,null,null,null,null,null,null,null,null,null,null,null,null,null,null,null,null,null,null,null,null,null,null,null,null,null,null,null,null,null,null,null,null,null,null,null,null,null,null,null,null,null,null,null,null,null,null,null,null,null,null,null,null,null,null,null,null,null,null,null,null,null,null,null,null,null,null,null,null,null,null,null,null,null,null,null,null,null,null,null,null,null,null,null,null,null,null,null,null,null,null,null,null,null,null,null,null,null,null,null,null,null,null,null,null,null,null,null,null,null,null,null,null,null,null,null,null,null,null,null,null,null,null,null,null,null,null,null,null,null,null,null,null,null,null,null,null,null,null,null,null,null,null,null,null,null,null,null,null,null,null,null,null,null,null,null,null,null,null,null,null,null,null,null,null,null,null,null,null,null,null,null,null,null,null,null,null,null,null,null,null,null,null,null,null,null,null,null,null,null,null,null,null,null,null,null,null,null,null,null,null,null,null,null,null,null,null,null,null,null,null,null,null,null,null,null,null,null,null,null,null,null,null,null,null,null,null,null,null,null,null,null,null,null,null,null,null,null,null,null,null,null,null,null,null,null,null,null,null,null,null,null,null,null,null,null,null,null,null,null,null,null,null,null,null,null,null,null,null,null,null,null,null,null,null,null,null,null,null,null,null,null,null,null,null,null,null,null,null,null,null,null,null,null,null,null,null,null,null,null,null,null,null,null,null,null,null,null,null,null,null,null,null,null,null,null,null,null,null,null,null,null,null,null,null,null,null,null,null,null,null,null,null,null,null,null,null,null,null,null,null,null,null,null,null,null,null,null,null,null,null,null,null,null,null,null,null,null,null,null,null,null,null,null,null,null,null,null,null,null,null,null,null,null,null,null,null,null,null,null,null,null,null,null,null,null,null,null,null,null,null,null,null,null,null,null,null,null,null,null,null,null,null,null,null,null,null,null,null,null,null,null,null,null,null,null,null,null,null,null,null,null,null,null,null,null,null,null,null,null,null,null,null,null,null,null,null,null,null,null,null,null,null,null,null,null,null,null,null,null,null,null,null,null,null,null,null,null,null,null,null,null,null,null,null,null,null,null,null,null,null,null,null,null,null,null,null,null,null,null,null,null,null,null,null,null,null,null,null,null,null,null,null,null,null,null,null,null,null,null,null,null,null,null,null,null,null,null,null,null,null,null,null,null,null,null,null,null,null,null,null,null,null,null,null,null,null,null,null,null,null,null,null,null,null,null,null,null,null,null,null,null,null,null,null,null,null,null,null,null,null,null,null,null,null,null,null,null,null,null,null,null,null,null,null,null,null,null,null,null,null,null,null,null,null,null,null,null,null,null,null,null,null,null,null,null,null,null,null,null,null,null,null,null,null,null,null,null,null,null,null,null,null,null,null,null,null,null,null,null,null,null,null,null,null,null,null,null,null,null,null,null,null,null,null,null,null,null,null,null,null,null,null,null,null,null,null,null,null,null,null,null,null,null,null,null,null,null,null,null,null,null,null,null,null,null,null,null,null,null,null,null,null,null,null,null,null,null,null,null,null,null,null,null,null,null,null,null,null,null,null,null,null,null,null,null,null,null,null,null,null,null,null,null,null,null,null,null,null,null,null,null,null,null,null,null,null,null,null,null,null,null,null,null,null,null,null,null,null,null,null,null,null,null,null,null,null,null,null,null,null,null,null,null,null,null,null,null,null,null,null,null,null,null,null,null,null,null,null,null,null,null,null,null,null,null,null,null,null,null,null,null,null,null,null,null,null,null,null,null,null,null,null,null,null,null,null,null,null,null,null,null,null,null,null,null,null,null,null,null,null,null,null,null,null,null,null,null,null,null,null,null,null,null,null,null,null,null,null,null,null,null,null,null,null,null,null,null,null,null,null,null,null,null,null,null,null,null,null,null,null,null,null,null,null,null,null,null,null,null,null,null,null,null,null,null,null,null,null,null,null,null,null,null,null,null,null,null,null,null,null,null,null,null,null,null,null,null,null,null,null,null,null,null,null,null,null,null,null,null,null,null,null,null,null,null,null,null,null,null,null,null,null,null,null,null,null,null,null,null,null,null,null,null,null,null,null,null,null,null,null,null,null,null,null,null,null,null,null,null,null,null,null,null,null,null,null,null,null,null,null,null,null,null,null,null,null,null,null,null,null,null,null,null,null,null,null,null,null,null,null,null,null,null,null,null,null,null,null,null,null,null,null,null,null,null,null,null,null,null,null,null,null,null,null,null,null,null,null,null,null,null,null,null,null,null,null,null,null,null,null,null,null,null,null,null,null,null,null,null,null,null,null,null,null,null,null,null,null,null,null,null,null,null,null,null,null,null,null,null,null,null,null,null,null,null,null,null,null,null,null,null,null,null,null,null,null,null,null,null,null,null,null,null,null,null,null,null,null,null,null,null,null,null,null,null,null,null,null,null,null,null,null,null,null,null,null,null,null,null,null,null,null,null,null,null,null,null,null,null,null,null,null,null,null,null,null,null,null,null,null,null,null,null,null,null,null,null,null,null,null,null,null,null,null,null,null,null,null,null,null,null,null,null,null,null,null,null,null,null,null,null,null,null,null,null,null,null,null,null,null,null,null,null,null,null,null,null,null,null,null,null,null,null,null,null,null,null,null,null,null,null,null,null,null,null,null,null,null,null,null,null,null,null,null,null,null,null,null,null,null,null,null,null,null,null,null,null,null,null,null,null,null,null,null,null,null,null,null,null,null,null,null,null,null,null,null,null,null,null,null,null,null,null,null,null,null,null,null,null,null,null,null,null,null,null,null,null,null,null,null,null,null,null,null,null,null,null,null,null,null,null,null,null,null,null,null,null,null,null,null,null,null,null,null,null,null,null,null,null,null,null,null,null,null,null,null,null,null,null,null,null,null,null,null,null,null,null,null,null,null,null,null,null,null,null,null,null,null,null,null,null,null,null,null,null,null,null,null,null,null,null,null,null,null,null,null,null,null,null,null,null,null,null,null,null,null,null,null,null,null,null,null,null,null,null,null,null,null,null,null,null,null,null,null,null,null,null,null,null,null,null,null,null,null,null,null,null,null,null,null,null,null,null,null,null,null,null,null,null,null,null,null,null,null,null,null,null,null,null,null,null,null,null,null,null,null,null,null,null,null,null,null,null,null,null,null,null,null,null,null,null,null,null,null,null,null,null,null,null,null,null,null,null,null,null,null,null,null,null,null,null,null,null,null,null,null,null,null,null,null,null,null,null,null,null,null,null,null,null,null,null,null,null,null,null,null,null,null,null,null,null,null,null,null,null,null,null,null,null,null,null,null,null,null,null,null,null,null,null,null,null,null,null,null,null,null,null,null,null,null,null,null,null,null,null,null,null,null,null,null,null,null,null,null,null,null,null,null,null,null,null,null,null,null,null,null,null,null,null,null,null,null,null,null,null,null,null,null,null,null,null,null,null,null,null,null,null,null,null,null,null,null,null,null,null,null,null,null,null,null,null,null,null,null,null,null,null,null,null,null,null,null,null,null,null,null,null,null,null,null,null,null,null,null,null,null,null,null,null,null,null,null,null,null,null,null,null,null,null,null,null,null,null,null,null,null,null,null,null,null,null,null,null,null,null,null,null,null,null,null,null,null,null,null,null,null,null,null,null,null,null,null,null,null,null,null,null,null,null,null,null,null,null,null,null,null,null,null,null,null,null,null,null,null,null,null,null,null,null,null,null,null,null,null,null,null,null,null,null,null,null,null,null,null,null,null,null,null,null,null,null,null,null,null,null,null,null,null,null,null,null,null,null,null,null,null,null,null,null,null,null,null,null,null,null,null,null,null,null,null,null,null,null,null,null,null,null,null,null,null,null,null,null,null,null,null,null,null,null,null,null,null,null,null,null,null,null,null,null,null,null,null,null,null,null,null,null,null,null,null,null,null,null,null,null,null,null,null,null,null,null,null,null,null,null,null,null,null,null,null,null,null,null,null,null,null,null,null,null,null,null,null,null,null,null,null,null,null,null,null,null,null,null,null,null,null,null,null,null,null,null,null,null,null,null,null,null,null,null,null,null,null,null,null,null,null,null,null,null,null,null,null,null,null,null,null,null,null,null,null,null,null,null,null,null,null,null,null,null,null,null,null,null,null,null,null,null,null,null,null,null,null,null,null,null,null,null,null,null,null,null,null,null,null,null,null,null,null,null,null,null,null,null,null,null,null,null,null,null,null,null,null,null,null,null,null,null,null,null,null,null,null,null,null,null,null,null,null,null,null,null,null,null,null,null,null,null,null,null,null,null,null,null,null,null,null,null,null,null,null,null,null,null,null,null,null,null,null,null,null,null,null,null,null,null,null,null,null,null,null,null,null,null,null,null,null,null,null,null,null,null,null,null,null,null,null,null,null,null,null,null,null,null,null,null,null,null,null,null,null,null,null,null,null,null,null,null,null,null,null,null,null,null,null,null,null,null,null,null,null,null,null,null,null,null,null,null,null,null,null,null,null,null,null,null,null,null,null,null,null,null,null,null,null,null,null,null,null,null,null,null,null,null,null,null,null,null,null,null,null,null,null,null,null,null,null,null,null,null,null,null,null,null,null,null,null,null,null,null,null,null,null,null,null,null,null,null,null,null,null,null,null,null,null,null,null,null,null,null,null,null,null,null,null,null,null,null,null,null,null,null,null,null,null,null,null,null,null,null,null,null,null,null,null,null,null,null,null,null,null,null,null,null,null,null,null,null,null,null,null,null,null,null,null,null,null,null,null,null,null,null,null,null,null,null,null,null,null,null,null,null,null,null,null,null,null,null,null,null,null,null,null,null,null,null,null,null,null,null,null,null,null,null,null,null,null,null,null,null,null,null,null,null,null,null,null,null,null,null,null,null,null,null,null,null,null,null,null,null,null,null,null,null,null,null,null,null,null,null,null,null,null,null,null,null,null,null,null,null,null,null,null,null,null,null,null,null,null,null,null,null,null,null,null,null,null,null,null,null,null,null,null,null,null,null,null,null,null,null,null,null,null,null,null,null,null,null,null,null,null,null,null,null,null,null,null,null,null,null,null,null,null,null,null,null,null,null,null,null,null,null,null,null,null,null,null,null,null,null,null,null,null,null,null,null,null,null,null,null,null,null,null,null,null,null,null,null,null,null,null,null,null,null,null,null,null,null,null,null,null,null,null,null,null,null,null,null,null,null,null,null,null,null,null,null,null,null,null,null,null,null,null,null,null,null,null,null,null,null,null,null,null,null,null,null,null,null,null,null,null,null,null,null,null,null,null,null,null,null,null,null,null,null,null,null,null,null,null,null,null,null,null,null,null,null,null,null,null,null,null,null,null,null,null,null,null,null,null,null,null,null,null,null,null,null,null,null,null,null,null,null,null,null,null,null,null,null,null,null,null,null,null,null,null,null,null,null,null,null,null,null,null,null,null,null,null,null,null,null,null,null,null,null,null,null,null,null,null,null,null,null,null,null,null,null,null,null,null,null,null,null,null,null,null,null,null,null,null,null,null,null,null,null,null,null,null,null,null,null,null,null,null,null,null,null,null,null,null,null,null,null,null,null,null,null,null,null,null,null,null,null,null,null,null,null,null,null,null,null,null,null,null,null,null,null,null,null,null,null,null,null,null,null,null,null,null,null,null,null,null,null,null,null,null,null,null,null,null,null,null,null,null,null,null,null,null,null,null,null,null,null,null,null,null,null,null,null,null,null,null,null,null,null,null,null,null,null,null,null,null,null,null,null,null,null,null,null,null,null,null,null,null,null,null,null,null,null,null,null,null,null,null,null,null,null,null,null,null,null,null,null,null,null,null,null,null,null,null,null,null,null,null,null,null,null,null,null,null,null,null,null,null,null,null,null,null,null,null,null,null,null,null,null,null,null,null,null,null,null,null,null,null,null,null,null,null,null,null,null,null,null,null,null,null,null,null,null,null,null,null,null,null,null,null,null,null,null,null,null,null,null,null,null,null,null,null,null,null,null,null,null,null,null,null,null,null,null,null,null,null,null,null,null,null,null,null,null,null,null,null,null,null,null,null,null,null,null,null,null,null,null,null,null,null,null,null,null,null,null,null,null,null,null,null,null,null,null,null,null,null,null,null,null,null,null,null,null,null,null,null,null,null,null,null,null,null,null,null,null,null,null,null,null,null,null,null,null,null,null,null,null,null,null,null,null,null,null,null,null,null,null,null,null,null,null,null,null,null,null,null,"BOMBEA CATALIN & GALATANU CATALIN - \nNASTASE VINTILA & DUMITRIU FLORIN"]

{"sheet":"Score Log","index":2,"n_rows":35,"n_cols":14,"rows_kept":35,"cut":false,"hidden":false,"merged":[[0,2,0,7],[10,11,10,13],[10,8,10,10]]}
[null,null,"Table Tennis ScoreBoard"]
[null,"League:","II",null,"League:","II"]
[null,"Team 1:",null,null,"Team 2:"]
[]
[null,"A",null,null,"V"]
[null,"B",null,null,"X"]
[null,"C",null,null,"Y"]
[null,"D",null,null,"Z"]
[]
[]
["Game No.","Game","Players","SET 1","SET 2","SET 3","SET 4","SET 5","Game Score",null,null,"Team Score"]
[1,"A-V",{"$f":"IF(OR(LEN($C$3)=0,LEN(B12)=0),\"\",PROPER(INDEX(IF($B$5=\"A\",Team1,Team2),IFERROR(MATCH(LEFT(B12,1),_AD,0),MATCH(LEFT(B12,1),_VZ,0)))&\" -- \"&INDEX(IF($B$5=\"A\",Team2,Team1),IFERROR(MATCH(RIGHT(B12,1),_VZ,0),MATCH(RIGHT(B12,1),_AD,0)))))","v":""},null,null,null,null,null,null,{"$f":"IF(LEN(I12)>0,\"-\",\"\")","v":""},null,{"$f":"IF(LEN(K12)=0,\"\",SUMPRODUCT(($I$12:I12>$K$12:K12)*1))","v":""},{"$f":"IF(LEN(L12)>0,\"-\",\"\")","v":""},{"$f":"IF(LEN(K12)=0,\"\",SUMPRODUCT(($I$12:I12<$K$12:K12)*1))","v":""}]
[2,"B-X","",null,null,null,null,null,null,{"$f":"IF(LEN(I13)>0,\"-\",\"\")","v":""},null,{"$f":"IF(LEN(K13)=0,\"\",SUMPRODUCT(($I$12:I13>$K$12:K13)*1))","v":""},{"$f":"IF(LEN(L13)>0,\"-\",\"\")","v":""},{"$f":"IF(LEN(K13)=0,\"\",SUMPRODUCT(($I$12:I13<$K$12:K13)*1))","v":""}]
[3,"C-Y","",null,null,null,null,null,null,"",null,{"$f":"IF(LEN(K14)=0,\"\",SUMPRODUCT(($I$12:I14>$K$12:K14)*1))","v":""},"",{"$f":"IF(LEN(K14)=0,\"\",SUMPRODUCT(($I$12:I14<$K$12:K14)*1))","v":""}]
[4,"D-Z","",null,null,null,null,null,null,"",null,{"$f":"IF(LEN(K15)=0,\"\",SUMPRODUCT(($I$12:I15>$K$12:K15)*1))","v":""},"",{"$f":"IF(LEN(K15)=0,\"\",SUMPRODUCT(($I$12:I15<$K$12:K15)*1))","v":""}]
[5,"A-X","",null,null,null,null,null,null,"",null,{"$f":"IF(LEN(K16)=0,\"\",SUMPRODUCT(($I$12:I16>$K$12:K16)*1))","v":""},"",{"$f":"IF(LEN(K16)=0,\"\",SUMPRODUCT(($I$12:I16<$K$12:K16)*1))","v":""}]
[6,"B-Y","",null,null,null,null,null,null,"",null,{"$f":"IF(LEN(K17)=0,\"\",SUMPRODUCT(($I$12:I17>$K$12:K17)*1))","v":""},"",{"$f":"IF(LEN(K17)=0,\"\",SUMPRODUCT(($I$12:I17<$K$12:K17)*1))","v":""}]
[7,"C-Z","",null,null,null,null,null,null,"",null,{"$f":"IF(LEN(K18)=0,\"\",SUMPRODUCT(($I$12:I18>$K$12:K18)*1))","v":""},"",{"$f":"IF(LEN(K18)=0,\"\",SUMPRODUCT(($I$12:I18<$K$12:K18)*1))","v":""}]
[8,"D-V","",null,null,null,null,null,null,"",null,{"$f":"IF(LEN(K19)=0,\"\",SUMPRODUCT(($I$12:I19>$K$12:K19)*1))","v":""},"",{"$f":"IF(LEN(K19)=0,\"\",SUMPRODUCT(($I$12:I19<$K$12:K19)*1))","v":""}]
[9,"Double",null,null,null,null,null,null,null,"",null,{"$f":"IF(LEN(K20)=0,\"\",SUMPRODUCT(($I$12:I20>$K$12:K20)*1))","v":""},"",{"$f":"IF(LEN(K20)=0,\"\",SUMPRODUCT(($I$12:I20<$K$12:K20)*1))","v":""}]
[10,"A-Y",{"$f":"IF(OR(LEN($C$3)=0,LEN(B21)=0),\"\",PROPER(INDEX(IF($B$5=\"A\",Team1,Team2),IFERROR(MATCH(LEFT(B21,1),_AD,0),MATCH(LEFT(B21,1),_VZ,0)))&\" -- \"&INDEX(IF($B$5=\"A\",Team2,Team1),IFERROR(MATCH(RIGHT(B21,1),_VZ,0),MATCH(RIGHT(B21,1),_AD,0)))))","v":""},null,null,null,null,null,null,"",null,{"$f":"IF(LEN(K21)=0,\"\",SUMPRODUCT(($I$12:I21>$K$12:K21)*1))","v":""},"",{"$f":"IF(LEN(K21)=0,\"\",SUMPRODUCT(($I$12:I21<$K$12:K21)*1))","v":""}]
[11,"B-Z","",null,null,null,null,null,null,"",null,{"$f":"IF(LEN(K22)=0,\"\",SUMPRODUCT(($I$12:I22>$K$12:K22)*1))","v":""},"",{"$f":"IF(LEN(K22)=0,\"\",SUMPRODUCT(($I$12:I22<$K$12:K22)*1))","v":""}]
[12,"C-V","",null,null,null,null,null,null,"",null,{"$f":"IF(LEN(K23)=0,\"\",SUMPRODUCT(($I$12:I23>$K$12:K23)*1))","v":""},"",{"$f":"IF(LEN(K23)=0,\"\",SUMPRODUCT(($I$12:I23<$K$12:K23)*1))","v":""}]
[13,"D-X","",null,null,null,null,null,null,"",null,{"$f":"IF(LEN(K24)=0,\"\",SUMPRODUCT(($I$12:I24>$K$12:K24)*1))","v":""},"",{"$f":"IF(LEN(K24)=0,\"\",SUMPRODUCT(($I$12:I24<$K$12:K24)*1))","v":""}]
[14,"A-Z","",null,null,null,null,null,null,"",null,{"$f":"IF(LEN(K25)=0,\"\",SUMPRODUCT(($I$12:I25>$K$12:K25)*1))","v":""},"",{"$f":"IF(LEN(K25)=0,\"\",SUMPRODUCT(($I$12:I25<$K$12:K25)*1))","v":""}]
[15,"B-V","",null,null,null,null,null,null,"",null,{"$f":"IF(LEN(K26)=0,\"\",SUMPRODUCT(($I$12:I26>$K$12:K26)*1))","v":""},"",{"$f":"IF(LEN(K26)=0,\"\",SUMPRODUCT(($I$12:I26<$K$12:K26)*1))","v":""}]
[16,"C-X","",null,null,null,null,null,null,"",null,{"$f":"IF(LEN(K27)=0,\"\",SUMPRODUCT(($I$12:I27>$K$12:K27)*1))","v":""},"",{"$f":"IF(LEN(K27)=0,\"\",SUMPRODUCT(($I$12:I27<$K$12:K27)*1))","v":""}]
[17,"D-Y","",null,null,null,null,null,null,"",null,{"$f":"IF(LEN(K28)=0,\"\",SUMPRODUCT(($I$12:I28>$K$12:K28)*1))","v":""},"",{"$f":"IF(LEN(K28)=0,\"\",SUMPRODUCT(($I$12:I28<$K$12:K28)*1))","v":""}]
[]
[null,null,"Final Score:"]
[null,null,{"$f":"IF(OR(LEN(Team1Name)=0,LEN(Team2Name)=0),\"\",C3&\" Vs. \"&F3&\": \"&CHAR(10)&SUMPRODUCT(($I$12:I28>$K$12:K28)*1)&\"          -          \"&SUMPRODUCT(($I$12:I28<$K$12:K28)*1))","v":""}]
[]
[null,null,"Winners Team:",null,null,"Losing Team :"]
[null,null,{"$f":"IF(OR(LEN(Team1Name)=0,LEN(Team2Name)=0),\"\",IF(SUMPRODUCT(($I$12:I28>$K$12:K28)*1)>SUMPRODUCT(($I$12:I28<$K$12:K28)*1),C3,F3))","v":""},null,null,{"$f":"IF(OR(LEN(Team1Name)=0,LEN(Team2Name)=0),\"\",IF(SUMPRODUCT(($I$12:I28>$K$12:K28)*1)<SUMPRODUCT(($I$12:I28<$K$12:K28)*1),C3,F3))","v":""}]
[null,null,"Winner Team Captain Signature:",null,null,"Losing Team Captain Signature:"]

{"sheet":"Players","index":3,"n_rows":408,"n_cols":3,"rows_kept":408,"cut":false,"hidden":false,"merged":[]}
["League","Team","Player Name"]
["I","ISPAL","ZVORISTEANU CRISTIAN"]
["I","ISPAL","JALBA STELIAN"]
["I","ISPAL","SANDU ILIE"]
["I","ISPAL","BURCA ANDREI"]
["I","ISPAL","JALBA VLAD"]
["I","KAUFLAND","ANTON CRISTIAN"]
["I","KAUFLAND","PARFENE RARES"]
["I","KAUFLAND","NASTASA SERGIU"]
["I","KAUFLAND","CIOLAN VLAD"]
["I","CLEOPATRA","BULARDA IULIAN"]
["I","CLEOPATRA","DAVID DORIN"]
["I","CLEOPATRA","CALIN MIHAI"]
["I","CLEOPATRA","CORCOZ COSTIN"]
["I","CLEOPATRA","DAVID MADALINA"]
["I","GIROS COMPANY","CIOBOTARU OVIDIU"]
["I","GIROS COMPANY","PARASCUTA DANIEL"]
["I","GIROS COMPANY","AXINTE BOGDAN"]
["I","DISCRET","CRAMBA CRISTINEL"]
["I","DISCRET","MARTINAS MARIUS"]
["I","DISCRET","VILCU ADRIAN"]
["I","DISCRET","SIRETEANU ALEXANDRU"]
["I","DISCRET","MANOLACHI MIHAELA"]
["I","DISCRET","LUNTRARU ANDREI"]
["I","MOBIL SERVICE","CONSTANTINESCU DAN"]
["I","MOBIL SERVICE","VASILACHE SEBASTIAN"]
["I","MOBIL SERVICE","MORARIU MIRCEA"]
["I","MOBIL SERVICE","TIRON MARIAN"]
["I","STIINTA MIROSLAVA","STEREA VIOREL"]
["I","STIINTA MIROSLAVA","ALBU VLAD"]
["I","STIINTA MIROSLAVA","PREDA IONUT"]
["I","STIINTA MIROSLAVA","SIMON CSABA"]
["I","STIINTA MIROSLAVA","SIMION BOGDAN"]
["I","STIINTA MIROSLAVA","COROIU ANDREI"]
["I","MR.PONG","ONISEI FLORIN"]
["I","MR.PONG","SURDU MARCEL"]
["I","MR.PONG","STIRBU ANDREI"]
["I","MR.PONG","LITOVCENCO GHEORGHE"]
["I","MR.PONG","DUBROVIN VENEAMIN"]
["I","MR.PONG","IRIMIA SORIN"]
["I","AEROPORTUL","CARAIMAN IONEL"]
["I","AEROPORTUL","MALIMPENSA DAVIDE"]
["I","AEROPORTUL","SAVA MIHAI SORIN"]
["I","AEROPORTUL","BAIU LACRAMIOARA"]
["I","AEROPORTUL","BARAU ANDREEA"]
["I","MAX SATELIT","CIOBOTARU GHEORGHE"]
["I","MAX SATELIT","GAFTEA MARIA"]
["I","MAX SATELIT","POSTUDOR BOGDAN"]
["I","MAX SATELIT","AGA ALEXANDRU"]
["I","MAX SATELIT","MIROIU VERGINICA"]
["I","MOLID ","DARIE VIRGIL"]
["I","MOLID ","CARPOVICI BORIS"]
["I","MOLID ","COZMA CATALIN"]
["I","MOLID ","MOSNEAGU MARIUS"]
["I","MOLID ","ROMAN IULIAN"]
["I","CLUB ARMONY","BERESCU GHEORGHE"]
["I","CLUB ARMONY","ACATRINEI DANIEL"]
["I","CLUB ARMONY","BAIU CONSTANTIN"]
["I","MADO","HORHOTA VICTOR"]
["I","MADO","CALENCIUC DUMITRU"]
["I","MADO","DOLTU MIHAI"]
["I","MADO","ZAHARIA IULIAN"]
["I","T.C. TG.FRUMOS","CIUREA ANDREI"]
["I","T.C. TG.FRUMOS","INICERU GEORGE"]
["I","T.C. TG.FRUMOS","PAVEL BOGDAN"]
["I","T.C. TG.FRUMOS","CRETU FLORIN"]
["II","TOPAZ","POPESCU CARMEN"]
["II","TOPAZ","PALAGA FLORIN"]
["II","TOPAZ","BONDOR GEORGE"]
["II","TOPAZ","FETCU CRISTIAN"]
["II","TOPAZ","BOUREANU IONEL"]
["II","LIONS","GRIGOROVICI ALEXANDRU"]
["II","LIONS","CALIN ALINA IONELA"]
["II","LIONS","DABIJA RAZVAN"]
["II","LIONS","CHIPERI STEFAN"]
["II","TEAM X-TREME","CUDRIC ANDREI"]
["II","TEAM X-TREME","CIUBOTARU LEONAS"]
["II","TEAM X-TREME","OGRINJI NICOLAE"]
["II","TEAM X-TREME","CHITIC PAUL"]
["II","TEAM X-TREME","SALARI MIHAI"]
["II","TOPSPIN ARENA","IACOB GABRIEL"]
["II","TOPSPIN ARENA","BALAN ALEXANDRU"]
["II","TOPSPIN ARENA","BATRINU VLAD"]
["II","TOPSPIN ARENA","GASNER PAUL"]
["II","TOPSPIN ARENA","ALEXIU ANDREI"]
["II","TOPSPIN ARENA","CIUBOTARIU CLAUDIU"]
["II","TOPSPIN ARENA","MUNTEANU OCTAVIAN"]
["II","MILLION","MANTA VLAD"]
["II","MILLION","CRICLEVITZ LIVIU"]
["II","MILLION","APETREI LUCIAN"]
["II","MILLION","COVALCIUC BOGDAN"]
["II","MILLION","GHILAN DAN"]
["II","MILLION","FILIMON VALERICA"]
["II","COM-VAL","MIHAI CRISTIAN"]
["II","COM-VAL","UNGUREANU DANUT"]
["II","COM-VAL","MUNTEANU FLORIN"]
["II","COM-VAL","ALBU GHEORGHE"]
["II","COM-VAL","FRUMOASA GHEORGHE"]
["II","TEHNOPRES","JAPA COSTICA"]
["II","TEHNOPRES","APOSTOL LUCIAN"]
["II","TEHNOPRES","SACAGIU RADU"]
["II","TEHNOPRES","CIOBANU MARIUS"]
["II","TEHNOPRES","ZAHARIA IONUT"]
["II","TEHNOPRES","STEGARU FLAVIAN"]
["II","BITDEFENDER","AXINTE TIBERIUS"]
["II","BITDEFENDER","BIBER ADRIAN"]
["II","BITDEFENDER","POPESCU DAN"]
["II","BITDEFENDER","PREDA LIVIU"]
["II","BITDEFENDER","URSU IRINEL"]
["II","AUTO PROGLOBAL","CALANCEA DUMITRU"]
["II","AUTO PROGLOBAL","ISAC DANA"]
["II","AUTO PROGLOBAL","CONDREA EMIL"]
["II","AUTO PROGLOBAL","BORNAZ OCTAV"]
["II","AUTO PROGLOBAL","ROMILA EMIL"]
["II","AUTO PROGLOBAL","BERZOI VICTOR"]
["II","POMPIERII","MELINTE GABRIEL"]
["II","POMPIERII","TUGUI DAN"]
["II","POMPIERII","DRAGOMAN VASILE"]
["II","POMPIERII","NICULITA SORIN"]
["II","POMPIERII","POLOCOSER OVIDIU"]
["II","POMPIERII","LUNTRARU MIHAI"]
["II","IASICON","ALUPOAIE DUMITRU"]
["II","IASICON","PINTILIE VLAD"]
["II","IASICON","FLORIA IULIAN"]
["II","IASICON","MARCU RARES"]
["II","IASICON","ISAC DANIEL"]
["II","IASICON","DOBRINCU VLAD"]
["II","IASICON","MAJEED MAHMOOD"]
["II","MR.PONG 2","STEFAN DAN"]
["II","MR.PONG 2","MORARU EUGEN"]
["II","MR.PONG 2","FARAON ROBERT"]
["II","MR.PONG 2","VINACHI VALENTIN"]
["II","AZT","LITCANU KLAUDYU"]
["II","AZT","DIRVARU VALENTIN"]
["II","AZT","HOCIUNG CIPRIAN"]
["II","AZT","INSURATELU PETRU"]
["II","AZT","SUMULEA MIHAI"]
["II","SIMAR ERBICENI","CRIVEI CLAUDIU"]
["II","SIMAR ERBICENI","GHERASIM FLORIN"]
["II","SIMAR ERBICENI","STEFANACHE DUMITRU"]
["II","SIMAR ERBICENI","STEFANACHE EMIL"]
["II","SIMAR ERBICENI","HABAGERIU EUGEN"]
["II","SIMAR ERBICENI","TIGANISTEANU ADRIAN"]
["II","TEAM CONTI","PATRASCU DANIEL"]
["II","TEAM CONTI","PATRASCU CRISTIAN"]
["II","TEAM CONTI","IPATE GIOVANI"]
["II","TEAM CONTI","COCEA CATALIN"]
["II","TEAM CONTI","BAGEAG CRISTIAN"]
["II","NETINVEST","GHIORGHIU DRAGOS"]
["II","NETINVEST","MUNTEANU LARENTIU"]
["II","NETINVEST","COSTACHESCU C-TIN"]
["II","NETINVEST","POSTU ADRIAN"]
["III","EQUINOX","CIUBOTARU CARMEN"]
["III","EQUINOX","TIPU VLAD"]
["III","EQUINOX","STEFAN ALEXANDRU"]
["III","EQUINOX","SUMANARU CATALIN"]
["III","EQUINOX","COTILICI ANA MARIA"]
["III","EQUINOX","NICA VALERICA"]
["III","EQUINOX","POPA ANDREEA-JR."]
["III","HIGH TECH","BOMBEA CATALIN"]
["III","HIGH TECH","CHIRA IULIAN"]
["III","HIGH TECH","BURLACU ANDREI"]
["III","HIGH TECH","GALATANU CATALIN"]
["III","HIGH TECH","TANASE DAN"]
["III","HIGH TECH","BOMBEA DORIN-JR."]
["III","PESCARII","COTELEA IONEL"]
["III","PESCARII","IACOB IONUT"]
["III","PESCARII","PARFENE IULIAN"]
["III","PESCARII","PADURARU CATALIN"]
["III","PESCARII","VRINCEANU VALENTIN"]
["III","PESCARII","CISLARIU ANGEL-JR."]
["III","C.C.TG. FRUMOS","GREBINISAN MARIAN"]
["III","C.C.TG. FRUMOS","ANDRIES DORU"]
["III","C.C.TG. FRUMOS","STRACHINA DAN"]
["III","C.C.TG. FRUMOS","CRISU CONSTANTIN"]
["III","C.C.TG. FRUMOS","FILIP MARIUS"]
["III","C.C.TG. FRUMOS","PRICOPE CATALIN"]
["III","C.C.TG. FRUMOS","NASTACA SORIN-JR."]
["III","PIRANHA","DOBRE DAN DORU"]
["III","PIRANHA","SAVA RADU"]
["III","PIRANHA","BUNDUC VASILE"]
["III","PIRANHA","TANASE STEFAN"]
["III","PIRANHA","FILIMON GABRIEL"]
["III","PIRANHA","COAJA ANDREI"]
["III","ACVILA","NICU CONSTANTIN"]
["III","ACVILA","ALBU CATALIN"]
["III","ACVILA","FILIP GERARD"]
["III","ACVILA","PRECU SERGIU"]
["III","ACVILA","MAHU BOGDAN"]
["III","ACVILA","VILCU MATEI-JR."]
["III","RED SCORPIONS ","CIORTESCU CRISTIAN"]
["III","RED SCORPIONS ","HUNEA LUCIAN"]
["III","RED SCORPIONS ","MACARI ION"]
["III","RED SCORPIONS ","PELIN DUMITRU"]
["III","RED SCORPIONS ","GANCIRIUC SILVIU"]
["III","RED SCORPIONS ","AFTENE IULIAN"]
["III","RED SCORPIONS ","MICULESCU ALEX.-JR."]
["III","COM-VAL 2","MOCANU COSTEL"]
["III","COM-VAL 2","POCNET VLAD"]
["III","COM-VAL 2","BOTEZ VALERIU"]
["III","COM-VAL 2","DASCALITA STEFAN"]
["III","COM-VAL 2","BADARAU EMANOIL"]
["III","COM-VAL 2","MUNTEANU MIHAI-JR."]
["III","RAR","CAUTIS DORIN"]
["III","RAR","NENESTEAN RAUL"]
["III","RAR","SDROBIS VIOREL"]
["III","RAR","NASTASE VINTILA"]
["III","RAR","DUMITRIU FLORIN"]
["III","RAR","VASILIU NICOLAE"]
["III","OLT FRIG","OLTEANU GABRIEL"]
["III","OLT FRIG","HARIUC COSTICA"]
["III","OLT FRIG","PASCARU CIPRIAN"]
["III","OLT FRIG","HREHORCIUC MIRCEA"]
["III","OLT FRIG","CIUBOTARU ROBERT-JR."]
["III","INITA","TUCALIUC VLAD"]
["III","INITA","CIRLIGEANU ALEXANDRU"]
["III","INITA","NEAGU MIRCEA"]
["III","INITA","DOBRINCU DAN"]
["III","INITA","GARABET DAN"]
["III","INITA","STEFAN ANDREI-JR."]
["III","CLUB CFR","CHIRCA TIBERIU"]
["III","CLUB CFR","BUZDUGAN IUSTIN"]
["III","CLUB CFR","GRADINARIU DOREL"]
["III","CLUB CFR","ALBU CLAUDIA"]
["III","CLUB CFR","VINULESCU GHEORGHE"]
["III","CLUB CFR","DRAGAN CATALIN"]
["III","CLUB CFR","CIUCA SORIN-JR."]
["III","NINA STUDIO","RAUTU VALENTIN"]
["III","NINA STUDIO","MARTINAS IOAN"]
["III","NINA STUDIO","POMARLEANU RADU"]
["III","NINA STUDIO","BOUREANU CONSTANTIN"]
["III","NINA STUDIO","BOGZA DRAGOS"]
["III","AZT 2","BARBOSU CATALIN"]
["III","AZT 2","BARBOSU CLAUDIU"]
["III","AZT 2","BALANESCU FLORIN"]
["III","AZT 2","URSACHE IONEL"]
["III","AZT 2","ROMANESCU C-TIN"]
["III","AZT 2","BACALU VALENTIN"]
["III","CRIS CRISCO","PAVAL MIHAI"]
["III","CRIS CRISCO","CIOANCA AURELIAN"]
["III","CRIS CRISCO","LUPASCU CONSTANTIN"]
["III","CRIS CRISCO","MARDARE DAN "]
["III","CRIS CRISCO","DUNGA REMUS"]
["III","CRIS CRISCO","CARPOVICI SERGIU"]
["III","CRIS CRISCO","PAULET BOGDAN-JR."]
["III","FORNETTI","DOBRESANCIUC PAUL"]
["III","FORNETTI","TIRZIMAN CATALIN"]
["III","FORNETTI","ROMAN ALEXANDRU"]
["III","FORNETTI","BENGHIAC MIHAI"]
["III","FORNETTI","STANCIU CONSTANTIN"]
["III","FORNETTI","BUCISCANU GABRIEL"]
["III","FORNETTI","TIRZIMAN CEZAR-JR."]
["IV","POSTA ROMANA","COBZARIU EMANUEL"]
["IV","POSTA ROMANA","TINTEA CONSTANTIN"]
["IV","POSTA ROMANA","POPESCU EMIL"]
["IV","POSTA ROMANA","MOSCU ALEXANDRU"]
["IV","POSTA ROMANA","COBZARIU ALEX.-JR."]
["IV","ALILA","STANCU ALEXANDRU"]
["IV","ALILA","PARPAUTA GABRIEL"]
["IV","ALILA","VLASE ADRIAN"]
["IV","ALILA","IORDACHE BOGDAN"]
["IV","ALILA","LUCHIANOV FILIP"]
["IV","ALILA","BOTEZ BOGDAN"]
["IV","ALILA","SPINU FLORIS-JR."]
["IV","SHAORMA KING","CHEHAB ZAKI"]
["IV","SHAORMA KING","MOROSANU SILVIU"]
["IV","SHAORMA KING","ACATRINEI IONUT"]
["IV","SHAORMA KING","BOANCA DANIEL"]
["IV","SHAORMA KING","ACATRINEI ANDREI-JR."]
["IV","YAKUYU SHITAWA","AUNGURENCEI OVIDIU"]
["IV","YAKUYU SHITAWA","ADUMITROAIE CIPRIAN"]
["IV","YAKUYU SHITAWA","BIRLESCU GHEORGHE"]
["IV","YAKUYU SHITAWA","BUZDEA CONSTANTIN"]
["IV","YAKUYU SHITAWA","BAICU DANIEL"]
["IV","YAKUYU SHITAWA","STEFAN ALEXANDRU"]
["IV","YAKUYU SHITAWA","AUNGURENCEI MIRCEA-JR."]
["IV","ADAMOS BRASS","ADAMACHE GHEORGHE"]
["IV","ADAMOS BRASS","BARBUS DUMITRU"]
["IV","ADAMOS BRASS","NEGRU GHEORGHE"]
["IV","ADAMOS BRASS","VALERIU VASILE"]
["IV","ADAMOS BRASS","SANDU MARIUS"]
["IV","ADAMOS BRASS","ESANU MIHAI"]
["IV","ADAMOS BRASS","BURGUGIU EDUARD-JR."]
["IV","POLITEHNICA","IONESCU DAVID"]
["IV","POLITEHNICA","COSTIN BOGDAN"]
["IV","POLITEHNICA","CAZANEL EDUARD"]
["IV","POLITEHNICA","CRUDU NICU"]
["IV","POLITEHNICA","MATCOVICI STEFAN"]
["IV","POLITEHNICA","COVALCIUC LUCA-JR."]
["IV","MYTHOS","PATRAS VICTOR"]
["IV","MYTHOS","OBADA LACRAMIOARA"]
["IV","MYTHOS","ENASESCU EDUARD"]
["IV","MYTHOS","PATRAS ANTON"]
["IV","MYTHOS","ROSU MIHAI"]
["IV","MYTHOS","ENASESCU VLAD-JR."]
["IV","BONA EVENTUS","SIPOTEANU CORNELIU"]
["IV","BONA EVENTUS","RASCANU DAN"]
["IV","BONA EVENTUS","VILCU CATALIN"]
["IV","BONA EVENTUS","MOGA VIOREL"]
["IV","BONA EVENTUS","PLAMADA LUCIAN"]
["IV","BONA EVENTUS","CHIRCA RIANA-JR."]
["IV","TOPSPIN ARENA 2","HAMZA RAZVAN"]
["IV","TOPSPIN ARENA 2","PASLARIU LUCIAN"]
["IV","TOPSPIN ARENA 2","DOLHASCU BOGDAN"]
["IV","TOPSPIN ARENA 2","CONSTANTIN RADU"]
["IV","TOPSPIN ARENA 2","TUCALIUC MIHAI"]
["IV","TOPSPIN ARENA 2","DURAC COSMIN"]
["IV","EMIL OIL","IONESCU EMIL"]
["IV","EMIL OIL","FRINCU EUSEBIU"]
["IV","EMIL OIL","NAMOLOVAN CALIN"]
["IV","EMIL OIL","CRETU BOGDAN"]
["IV","EMIL OIL","TEMES ROBERT-JR."]
["IV","MR.PONG 3","CIOLPAN DORU"]
["IV","MR.PONG 3","CIOBANU CIPRIAN"]
["IV","MR.PONG 3","PANAINTE TIBERIU"]
["IV","MR.PONG 3","EVA DRAGOS"]
["IV","MR.PONG 3","ANDON MARIAN"]
["IV","MR.PONG 3","PANAINTE MIHAI-JR."]
["IV","EUROMOTOR","BARCA ALEXANDRU"]
["IV","EUROMOTOR","DRAGAN IOAN"]
["IV","EUROMOTOR","GHEORGHIU BOGDAN"]
["IV","EUROMOTOR","COLACEL CORNEL"]
["IV","EUROMOTOR","MAZAPA GELU"]
["IV","FOUR TEAM","MIHALACHE MIHAI"]
["IV","FOUR TEAM","LABAR ADRIAN"]
["IV","FOUR TEAM","DIACONU OVIDIU"]
["IV","FOUR TEAM","POPA SEBASTIAN"]
["IV","GOODFELLAS","PASAT TIBERIU"]
["IV","GOODFELLAS","RECEAN SERGIU"]
["IV","GOODFELLAS","PAVEL GABRIEL"]
["IV","GOODFELLAS","LAZAR LUCIAN"]
["IV","GOODFELLAS","SOLTAN SERGHEI"]
["IV","GOODFELLAS","KRISTO ROBERT"]
["IV","VIPER","COSTACHIOAIE RADU"]
["IV","VIPER","PODINA GABRIEL"]
["IV","VIPER","PARPAUTA REMUS"]
["IV","VIPER","NECULA MARIUS"]
["IV","VIPER","TUDOR OVIDIU"]
["IV","VIPER","ROTARU ALEXANDRU"]
["IV","DELTA PLAN","BUTNARU BOGDAN"]
["IV","DELTA PLAN","IONESCU VLAD"]
["IV","DELTA PLAN","MIHAI COSMIN"]
["IV","DELTA PLAN","CIOLAN MARIAN"]
["IV","DELTA PLAN","RUSU BOGDAN-JR."]
["V","LUCEAFARUL","PETRACHE MADALIN"]
["V","LUCEAFARUL","ILUCA ALEXANDRU"]
["V","LUCEAFARUL","PETRACHE VASILE"]
["V","LUCEAFARUL","HALUNGA VLAD"]
["V","CROSSFIRE","ZVORISTEANU IRINA"]
["V","CROSSFIRE","BOMBEA DELIA"]
["V","CROSSFIRE","BOMBEA ALINA"]
["V","CROSSFIRE","MATRESCU BIANCA"]
["V","CROSSFIRE","ZVORISTEANU TEODORA"]
["V","CSM IASI","COBZARIU DENISA"]
["V","CSM IASI","AUNGURENCEI MIRUNA"]
["V","CSM IASI","TIRON AMALIA"]
["V","CSM IASI","DUDUMAN STEFANA"]
["V","FOLHA SECA","SANDU EMILIAN"]
["V","FOLHA SECA","ABOAICE IONUT"]
["V","FOLHA SECA","CIOBOTARU LAURA"]
["V","FOLHA SECA","TATARU CODRIN"]
["V","FOLHA SECA","SANDU VASILE"]
["V","INFO RITUS","GHIUR LAURENTIU"]
["V","INFO RITUS","GHILAN STEFAN"]
["V","INFO RITUS","BANTU COSMIN"]
["V","INFO RITUS","LESENCIUC VLAD"]
["V","PETRU PONI","GRIGORAS RAZVAN"]
["V","PETRU PONI","DOGARU LAURENTIU"]
["V","PETRU PONI","HUGEANU MONICA"]
["V","PETRU PONI","CHIRILEANU TEODOR"]
["V","GABRIELA FARM","RUSU VALERIAN"]
["V","GABRIELA FARM","CRISTEA DORIN"]
["V","GABRIELA FARM","CHIRILA DAN"]
["V","GABRIELA FARM","POTORAC EUGEN"]
["V","GABRIELA FARM","LUPU ADRIAN"]
["V","ESPLANADA","VASILIU BOGDAN"]
["V","ESPLANADA","GHITA DOREL"]
["V","ESPLANADA","AVARVAREI CATALIN"]
["V","ESPLANADA","MUNTEANU CRISTIAN"]
["V","ESPLANADA","PLUMB STEFAN"]
["V","CLUBUL PRESEI","AGAFITEI IONUT"]
["V","CLUBUL PRESEI","MELINTE FLORIN"]
["V","CLUBUL PRESEI","CATARAMA LIVIU"]
["V","CLUBUL PRESEI","ASOFIEI CATALIN"]
["V","CLUBUL PRESEI","MACIUCA CRISTIAN"]
["V","SERGINIO","STEFAN SERGIU"]
["V","SERGINIO","LACATUSU LUCA"]
["V","SERGINIO","NANTU ALEXANDRU"]
["V","SERGINIO","DOULAMIS HRISTOS"]
["V","SERGINIO","ABAICEANU ADRIAN"]
["V","MR.PONG 4","BEJINARIU VALENTIN"]
["V","MR.PONG 4","BUTNARU BIANCA"]
["V","MR.PONG 4","PATRAS CLAUDIU"]
["V","MR.PONG 4","MUZICESCU GABRIEL"]
["V","Mc DONALD'S","DASCALESCU VICTOR"]
["V","Mc DONALD'S","CIORTESCU MIHAI"]
["V","Mc DONALD'S","SUSANU ROBERT"]
["V","Mc DONALD'S","GEORGESCU MIHNEA"]
["V","COM-VAL 3","ODAGERIU ADRIAN"]
["V","COM-VAL 3","CEARDAS MIHAI"]
["V","COM-VAL 3","MERTIC ALEXANDRU"]
["V","COM-VAL 3","BOT CATALIN"]
["V","COM-VAL 3","MELINTE GABRIEL"]
["V","SORIDENT","ANDRIAN SORIN"]
["V","SORIDENT","TEMNEANU PASTOREL"]
["V","SORIDENT","PANTAZIEV ALEXANDRU"]
["V","SORIDENT","GRIGORAS ANDREI"]
["V","SORIDENT","GRIGORAS TEODOR"]

{"sheet":"Players League 1","index":4,"n_rows":113,"n_cols":8,"rows_kept":113,"cut":false,"hidden":false,"merged":[]}
["Login"]
["Username"]
["Password"]
["Remember Me"]
["Forgot your password?"]
["Forgot your username?"]
["Create an account"]
["TenisDeMasaIasi.ro"]
["Campionatul Judetean"]
["Liga I"]
["Echipe"]
["Clasament"]
["Etape"]
["Jucatori"]
["Liga II"]
["Echipe"]
["Clasament"]
["Etape"]
["Jucatori"]
["Liga III"]
["Echipe"]
["Clasament"]
["Etape"]
["Jucatori"]
["Liga IV"]
["Echipe"]
["Clasament"]
["Etape"]
["Jucatori"]
["Liga V"]
["Echipe"]
["Clasament"]
["Etape"]
["Jucatori"]
["Arbitri"]
["Media"]
["ITTF TV LIVE"]
["Forum"]
["Recent Topics"]
["Search"]
["Derby Liga I"]
["IASY TROPHY-MEMORIALUL CORNEL MACOVEI"]
["  IASY TROPHY-MEMORIALUL CORNEL MACOVEI. Competitia este organizata de CSM Iasi..."]
["Iasi Open - Finala"]
["Iasi Open - Turneul Cartierelor"]
["Eliza Samara Iasi"]
["     "]
["Acum si pe Facebook"]
["Acum suntem si pe Facebook: https://www.facebook.com/tenis.iasi.7    "]
["Jucatori Transferabili"]
["      JUCATORI TRANSFERABILI - LIGA I   1.ADAM  MIHAI - MR.PONG 2.BA..."]
["Lista Juniori"]
["    JUNIORI 1.TIPU VLAD - NICODENT 2.NASTASA SERGIU - KAUFLAND 3.SUMANAR..."]
["DREPTURI DE EDITARE"]
["Daca doriti sa va editati datele de jucator sau datele cubului, imi trimiteti un mesaj pe privat cu ..."]
["AVERTISMENT"]
["Va rog nu faceti reclama in datele clubului sau ale jucatorului."]
["Previous Next"]
["Derby Liga I"]
["IASY TROPHY-MEMORIALUL CORNEL MACOVEI"]
["Iasi Open - Finala"]
["Iasi Open - Turneul Cartierelor"]
["Eliza Samara Iasi"]
["Acum si pe Facebook"]
["Jucatori Transferabili"]
["Lista Juniori"]
["DREPTURI DE EDITARE"]
["AVERTISMENT"]
["Jucatori Liga I","PDF","Print","E-mail"]
["Written by BERESCU GIGI   "]
["Friday, 18 October 2013 09:42"]
[]
[]
["1.ISPAL",null,"2.KAUFLAND",null,"3.CLEOPATRA",null,"4.GIROS COMPANY"]
[1,"ZVORISTEANU CRISTIAN",1,"ANTON CRISTIAN",1,"BULARDA IULIAN",1,"CIOBOTARU OVIDIU"]
[2,"JALBA STELIAN",2,"PARFENE RARES",2,"DAVID DORIN",2,"PARASCUTA DANIEL"]
[3,"SANDU ILIE",3,"NASTASA SERGIU",3,"CALIN MIHAI",3,"AXINTE BOGDAN"]
[4,"BURCA ANDREI",4,"CIOLAN VLAD",4,"CORCOZ COSTIN",4]
[5,"JALBA VLAD",5,null,5,"DAVID MADALINA",5]
[6,null,6,null,6,null,6]
[]
[]
[]
["5.DISCRET",null,"6.MOBIL SERVICE",null,"7.STIINTA MIROSLAVA",null,"8.MR.PONG"]
[1,"CRAMBA CRISTINEL",1,"CONSTANTINESCU DAN",1,"STEREA VIOREL",1,"ONISEI FLORIN"]
[2,"MARTINAS MARIUS",2,"VASILACHE SEBASTIAN",2,"ALBU VLAD",2,"SURDU MARCEL"]
[3,"VILCU ADRIAN",3,"MORARIU MIRCEA",3,"PREDA IONUT",3,"STIRBU ANDREI"]
[4,"SIRETEANU ALEXANDRU",4,"TIRON MARIAN",4,"SIMON CSABA",4,"LITOVCENCO GHEORGHE"]
[5,"MANOLACHI MIHAELA",5,null,5,"SIMION BOGDAN",5,"DUBROVIN VENEAMIN"]
[6,"LUNTRARU ANDREI",6,null,6,"COROIU ANDREI",6,"IRIMIA SORIN"]
[]
[]
[]
["9.AEROPORTUL",null,"10.MAX SATELIT",null,"11.MOLID ",null,"12.CLUB ARMONY"]
[1,"CARAIMAN IONEL",1,"CIOBOTARU GHEORGHE",1,"DARIE VIRGIL",1,"BERESCU GHEORGHE"]
[2,"MALIMPENSA DAVIDE",2,"GAFTEA MARIA",2,"CARPOVICI BORIS",2,"ACATRINEI DANIEL"]
[3,"SAVA MIHAI SORIN",3,"POSTUDOR BOGDAN",3,"COZMA CATALIN",3,"BAIU CONSTANTIN"]
[4,"BAIU LACRAMIOARA",4,"AGA ALEXANDRU",4,"MOSNEAGU MARIUS",4]
[5,"BARAU ANDREEA",5,"MIROIU VERGINICA",5,"ROMAN IULIAN",5]
[6,null,6,null,6,null,6]
[]
[]
[]
["13.MADO",null,"14.T.C. TG.FRUMOS"]
[1,"HORHOTA VICTOR",1,"CIUREA ANDREI"]
[2,"CALENCIUC DUMITRU",2,"INICERU GEORGE"]
[3,"DOLTU MIHAI",3,"PAVEL BOGDAN"]
[4,"ZAHARIA IULIAN",4,"CRETU FLORIN"]
[5,null,5]
[6,null,6]
[]
[]
["Last Updated on Wednesday, 04 March 2015 11:55"]

{"sheet":"Players League 2","index":5,"n_rows":123,"n_cols":8,"rows_kept":123,"cut":false,"hidden":false,"merged":[]}
["Login"]
["Username"]
["Password"]
["Remember Me"]
["Forgot your password?"]
["Forgot your username?"]
["Create an account"]
["TenisDeMasaIasi.ro"]
["Campionatul Judetean"]
["Liga I"]
["Echipe"]
["Clasament"]
["Etape"]
["Jucatori"]
["Liga II"]
["Echipe"]
["Clasament"]
["Etape"]
["Jucatori"]
["Liga III"]
["Echipe"]
["Clasament"]
["Etape"]
["Jucatori"]
["Liga IV"]
["Echipe"]
["Clasament"]
["Etape"]
["Jucatori"]
["Liga V"]
["Echipe"]
["Clasament"]
["Etape"]
["Jucatori"]
["Arbitri"]
["Media"]
["ITTF TV LIVE"]
["Forum"]
["Recent Topics"]
["Search"]
["Derby Liga I"]
["IASY TROPHY-MEMORIALUL CORNEL MACOVEI"]
["  IASY TROPHY-MEMORIALUL CORNEL MACOVEI. Competitia este organizata de CSM Iasi..."]
["Iasi Open - Finala"]
["Iasi Open - Turneul Cartierelor"]
["Eliza Samara Iasi"]
["     "]
["Acum si pe Facebook"]
["Acum suntem si pe Facebook: https://www.facebook.com/tenis.iasi.7    "]
["Jucatori Transferabili"]
["      JUCATORI TRANSFERABILI - LIGA I   1.ADAM  MIHAI - MR.PONG 2.BA..."]
["Lista Juniori"]
["    JUNIORI 1.TIPU VLAD - NICODENT 2.NASTASA SERGIU - KAUFLAND 3.SUMANAR..."]
["DREPTURI DE EDITARE"]
["Daca doriti sa va editati datele de jucator sau datele cubului, imi trimiteti un mesaj pe privat cu ..."]
["AVERTISMENT"]
["Va rog nu faceti reclama in datele clubului sau ale jucatorului."]
["Previous Next"]
["Derby Liga I"]
["IASY TROPHY-MEMORIALUL CORNEL MACOVEI"]
["Iasi Open - Finala"]
["Iasi Open - Turneul Cartierelor"]
["Eliza Samara Iasi"]
["Acum si pe Facebook"]
["Jucatori Transferabili"]
["Lista Juniori"]
["DREPTURI DE EDITARE"]
["AVERTISMENT"]
["Jucatori Liga II","PDF","Print","E-mail"]
["Written by Tiberius Axinte(Administrator)   "]
["Friday, 18 October 2013 09:42"]
[]
[]
["1.TOPAZ",null,"2.LIONS",null,"3.TEAM X-TREME",null,"4.TOPSPIN ARENA"]
[1,"POPESCU CARMEN",1,"GRIGOROVICI ALEXANDRU",1,"CUDRIC ANDREI",1,"IACOB GABRIEL"]
[2,"PALAGA FLORIN",2,"CALIN ALINA IONELA",2,"CIUBOTARU LEONAS",2,"BALAN ALEXANDRU"]
[3,"BONDOR GEORGE",3,"DABIJA RAZVAN",3,"OGRINJI NICOLAE",3,"BATRINU VLAD"]
[4,"FETCU CRISTIAN",4,"CHIPERI STEFAN",4,"CHITIC PAUL",4,"GASNER PAUL"]
[5,"BOUREANU IONEL",5,null,5,"SALARI MIHAI",5,"ALEXIU ANDREI"]
[6,null,6,null,6,null,6,"CIUBOTARIU CLAUDIU"]
[7,null,7,null,7,null,7,"MUNTEANU OCTAVIAN"]
[]
[]
["5.MILLION",null,"6.COM-VAL",null,"7.TEHNOPRES",null,"8.BITDEFENDER"]
[1,"MANTA VLAD",1,"MIHAI CRISTIAN",1,"JAPA COSTICA",1,"AXINTE TIBERIUS"]
[2,"CRICLEVITZ LIVIU",2,"UNGUREANU DANUT",2,"APOSTOL LUCIAN",2,"BIBER ADRIAN"]
[3,"APETREI LUCIAN",3,"MUNTEANU FLORIN",3,"SACAGIU RADU",3,"POPESCU DAN"]
[4,"COVALCIUC BOGDAN",4,"ALBU GHEORGHE",4,"CIOBANU MARIUS",4,"PREDA LIVIU"]
[5,"GHILAN DAN",5,"FRUMOASA GHEORGHE",5,"ZAHARIA IONUT",5,"URSU IRINEL"]
[6,"FILIMON VALERICA",6,null,6,"STEGARU FLAVIAN",6]
[7,null,7,null,7,null,7]
[]
[]
["9.AUTO PROGLOBAL",null,"10.POMPIERII",null,"11.IASICON",null,"12.MR.PONG 2"]
[1,"CALANCEA DUMITRU",1,"MELINTE GABRIEL",1,"ALUPOAIE DUMITRU",1,"STEFAN DAN"]
[2,"ISAC DANA",2,"TUGUI DAN",2,"PINTILIE VLAD",2,"MORARU EUGEN"]
[3,"CONDREA EMIL",3,"DRAGOMAN VASILE",3,"FLORIA IULIAN",3,"FARAON ROBERT"]
[4,"BORNAZ OCTAV",4,"NICULITA SORIN",4,"MARCU RARES",4,"VINACHI VALENTIN"]
[5,"ROMILA EMIL",5,"POLOCOSER OVIDIU",5,"ISAC DANIEL",5]
[6,"BERZOI VICTOR",6,"LUNTRARU MIHAI",6,"DOBRINCU VLAD",6]
[7,null,7,null,7,"MAJEED MAHMOOD",7]
[]
[]
["13.AZT",null,"14.SIMAR ERBICENI",null,"15.TEAM CONTI",null,"16.NETINVEST"]
[1,"LITCANU KLAUDYU",1,"CRIVEI CLAUDIU",1,"PATRASCU DANIEL",1,"GHIORGHIU DRAGOS"]
[2,"DIRVARU VALENTIN",2,"GHERASIM FLORIN",2,"PATRASCU CRISTIAN",2,"MUNTEANU LARENTIU"]
[3,"HOCIUNG CIPRIAN",3,"STEFANACHE DUMITRU",3,"IPATE GIOVANI",3,"COSTACHESCU C-TIN"]
[4,"INSURATELU PETRU",4,"STEFANACHE EMIL",4,"COCEA CATALIN",4,"POSTU ADRIAN"]
[5,"SUMULEA MIHAI",5,"HABAGERIU EUGEN",5,"BAGEAG CRISTIAN",5]
[6,null,6,"TIGANISTEANU ADRIAN",6,null,6]
[7,null,7,null,7,null,7]
[]
[]
[]
[]
[]
[]
[]
[]
[]
[]
[]
["Last Updated on Wednesday, 04 March 2015 12:01"]

{"sheet":"Players League 3","index":6,"n_rows":114,"n_cols":8,"rows_kept":114,"cut":false,"hidden":false,"merged":[]}
["Login"]
["Username"]
["Password"]
["Remember Me"]
["Forgot your password?"]
["Forgot your username?"]
["Create an account"]
["TenisDeMasaIasi.ro"]
["Campionatul Judetean"]
["Liga I"]
["Echipe"]
["Clasament"]
["Etape"]
["Jucatori"]
["Liga II"]
["Echipe"]
["Clasament"]
["Etape"]
["Jucatori"]
["Liga III"]
["Echipe"]
["Clasament"]
["Etape"]
["Jucatori"]
["Liga IV"]
["Echipe"]
["Clasament"]
["Etape"]
["Jucatori"]
["Liga V"]
["Echipe"]
["Clasament"]
["Etape"]
["Jucatori"]
["Arbitri"]
["Media"]
["ITTF TV LIVE"]
["Forum"]
["Recent Topics"]
["Search"]
["Derby Liga I"]
["IASY TROPHY-MEMORIALUL CORNEL MACOVEI"]
["  IASY TROPHY-MEMORIALUL CORNEL MACOVEI. Competitia este organizata de CSM Iasi..."]
["Iasi Open - Finala"]
["Iasi Open - Turneul Cartierelor"]
["Eliza Samara Iasi"]
["     "]
["Acum si pe Facebook"]
["Acum suntem si pe Facebook: https://www.facebook.com/tenis.iasi.7    "]
["Jucatori Transferabili"]
["      JUCATORI TRANSFERABILI - LIGA I   1.ADAM  MIHAI - MR.PONG 2.BA..."]
["Lista Juniori"]
["    JUNIORI 1.TIPU VLAD - NICODENT 2.NASTASA SERGIU - KAUFLAND 3.SUMANAR..."]
["DREPTURI DE EDITARE"]
["Daca doriti sa va editati datele de jucator sau datele cubului, imi trimiteti un mesaj pe privat cu ..."]
["AVERTISMENT"]
["Va rog nu faceti reclama in datele clubului sau ale jucatorului."]
["Previous Next"]
["Derby Liga I"]
["IASY TROPHY-MEMORIALUL CORNEL MACOVEI"]
["Iasi Open - Finala"]
["Iasi Open - Turneul Cartierelor"]
["Eliza Samara Iasi"]
["Acum si pe Facebook"]
["Jucatori Transferabili"]
["Lista Juniori"]
["DREPTURI DE EDITARE"]
["AVERTISMENT"]
["Jucatori Liga III","PDF","Print","E-mail"]
["Written by Administrator   "]
["Friday, 18 October 2013 09:42"]
[]
[]
["1.EQUINOX",null,"2.HIGH TECH",null,"3.PESCARII",null,"4.C.C.TG. FRUMOS"]
[1,"CIUBOTARU CARMEN",1,"BOMBEA CATALIN",1,"COTELEA IONEL",1,"GREBINISAN MARIAN"]
[2,"TIPU VLAD",2,"CHIRA IULIAN",2,"IACOB IONUT",2,"ANDRIES DORU"]
[3,"STEFAN ALEXANDRU",3,"BURLACU ANDREI",3,"PARFENE IULIAN",3,"STRACHINA DAN"]
[4,"SUMANARU CATALIN",4,"GALATANU CATALIN",4,"PADURARU CATALIN",4,"CRISU CONSTANTIN"]
[5,"COTILICI ANA MARIA",5,"TANASE DAN",5,"VRINCEANU VALENTIN",5,"FILIP MARIUS"]
[6,"NICA VALERICA",6,"BOMBEA DORIN-JR.",6,"CISLARIU ANGEL-JR.",6,"PRICOPE CATALIN"]
[7,"POPA ANDREEA-JR.",7,null,7,null,7,"NASTACA SORIN-JR."]
[]
[]
["5.PIRANHA",null,"6.ACVILA",null,"7.RED SCORPIONS ",null,"8.COM-VAL 2"]
[1,"DOBRE DAN DORU",1,"NICU CONSTANTIN",1,"CIORTESCU CRISTIAN",1,"MOCANU COSTEL"]
[2,"SAVA RADU",2,"ALBU CATALIN",2,"HUNEA LUCIAN",2,"POCNET VLAD"]
[3,"BUNDUC VASILE",3,"FILIP GERARD",3,"MACARI ION",3,"BOTEZ VALERIU"]
[4,"TANASE STEFAN",4,"PRECU SERGIU",4,"PELIN DUMITRU",4,"DASCALITA STEFAN"]
[5,"FILIMON GABRIEL",5,"MAHU BOGDAN",5,"GANCIRIUC SILVIU",5,"BADARAU EMANOIL"]
[6,"COAJA ANDREI",6,"VILCU MATEI-JR.",6,"AFTENE IULIAN",6,"MUNTEANU MIHAI-JR."]
[7,null,7,null,7,"MICULESCU ALEX.-JR.",7]
[]
[]
["9.RAR",null,"10.OLT FRIG",null,"11.INITA",null,"12.CLUB CFR"]
[1,"CAUTIS DORIN",1,"OLTEANU GABRIEL",1,"TUCALIUC VLAD",1,"CHIRCA TIBERIU"]
[2,"NENESTEAN RAUL",2,"HARIUC COSTICA",2,"CIRLIGEANU ALEXANDRU",2,"BUZDUGAN IUSTIN"]
[3,"SDROBIS VIOREL",3,"PASCARU CIPRIAN",3,"NEAGU MIRCEA",3,"GRADINARIU DOREL"]
[4,"NASTASE VINTILA",4,"HREHORCIUC MIRCEA",4,"DOBRINCU DAN",4,"ALBU CLAUDIA"]
[5,"DUMITRIU FLORIN",5,"CIUBOTARU ROBERT-JR.",5,"GARABET DAN",5,"VINULESCU GHEORGHE"]
[6,"VASILIU NICOLAE",6,null,6,"STEFAN ANDREI-JR.",6,"DRAGAN CATALIN"]
[7,null,7,null,7,null,7,"CIUCA SORIN-JR."]
[]
[]
["13.NINA STUDIO",null,"14.AZT 2",null,"15.CRIS CRISCO",null,"16.FORNETTI"]
[1,"RAUTU VALENTIN",1,"BARBOSU CATALIN",1,"PAVAL MIHAI",1,"DOBRESANCIUC PAUL"]
[2,"MARTINAS IOAN",2,"BARBOSU CLAUDIU",2,"CIOANCA AURELIAN",2,"TIRZIMAN CATALIN"]
[3,"POMARLEANU RADU",3,"BALANESCU FLORIN",3,"LUPASCU CONSTANTIN",3,"ROMAN ALEXANDRU"]
[4,"BOUREANU CONSTANTIN",4,"URSACHE IONEL",4,"MARDARE DAN ",4,"BENGHIAC MIHAI"]
[5,"BOGZA DRAGOS",5,"ROMANESCU C-TIN",5,"DUNGA REMUS",5,"STANCIU CONSTANTIN"]
[6,null,6,"BACALU VALENTIN",6,"CARPOVICI SERGIU",6,"BUCISCANU GABRIEL"]
[7,null,7,null,7,"PAULET BOGDAN-JR.",7,"TIRZIMAN CEZAR-JR."]
[]
[]
["Last Updated on Monday, 02 March 2015 11:36"]

{"sheet":"Players League 4","index":7,"n_rows":114,"n_cols":8,"rows_kept":114,"cut":false,"hidden":false,"merged":[]}
["Login"]
["Username"]
["Password"]
["Remember Me"]
["Forgot your password?"]
["Forgot your username?"]
["Create an account"]
["TenisDeMasaIasi.ro"]
["Campionatul Judetean"]
["Liga I"]
["Echipe"]
["Clasament"]
["Etape"]
["Jucatori"]
["Liga II"]
["Echipe"]
["Clasament"]
["Etape"]
["Jucatori"]
["Liga III"]
["Echipe"]
["Clasament"]
["Etape"]
["Jucatori"]
["Liga IV"]
["Echipe"]
["Clasament"]
["Etape"]
["Jucatori"]
["Liga V"]
["Echipe"]
["Clasament"]
["Etape"]
["Jucatori"]
["Arbitri"]
["Media"]
["ITTF TV LIVE"]
["Forum"]
["Recent Topics"]
["Search"]
["Derby Liga I"]
["IASY TROPHY-MEMORIALUL CORNEL MACOVEI"]
["  IASY TROPHY-MEMORIALUL CORNEL MACOVEI. Competitia este organizata de CSM Iasi..."]
["Iasi Open - Finala"]
["Iasi Open - Turneul Cartierelor"]
["Eliza Samara Iasi"]
["     "]
["Acum si pe Facebook"]
["Acum suntem si pe Facebook: https://www.facebook.com/tenis.iasi.7    "]
["Jucatori Transferabili"]
["      JUCATORI TRANSFERABILI - LIGA I   1.ADAM  MIHAI - MR.PONG 2.BA..."]
["Lista Juniori"]
["    JUNIORI 1.TIPU VLAD - NICODENT 2.NASTASA SERGIU - KAUFLAND 3.SUMANAR..."]
["DREPTURI DE EDITARE"]
["Daca doriti sa va editati datele de jucator sau datele cubului, imi trimiteti un mesaj pe privat cu ..."]
["AVERTISMENT"]
["Va rog nu faceti reclama in datele clubului sau ale jucatorului."]
["Previous Next"]
["Derby Liga I"]
["IASY TROPHY-MEMORIALUL CORNEL MACOVEI"]
["Iasi Open - Finala"]
["Iasi Open - Turneul Cartierelor"]
["Eliza Samara Iasi"]
["Acum si pe Facebook"]
["Jucatori Transferabili"]
["Lista Juniori"]
["DREPTURI DE EDITARE"]
["AVERTISMENT"]
["Jucatori Liga IV","PDF","Print","E-mail"]
["Written by Administrator   "]
["Friday, 18 October 2013 09:42"]
[]
[]
["1.POSTA ROMANA",null,"2.ALILA",null,"3.SHAORMA KING",null,"4.YAKUYU SHITAWA"]
[1,"COBZARIU EMANUEL",1,"STANCU ALEXANDRU",1,"CHEHAB ZAKI",1,"AUNGURENCEI OVIDIU"]
[2,"TINTEA CONSTANTIN",2,"PARPAUTA GABRIEL",2,"MOROSANU SILVIU",2,"ADUMITROAIE CIPRIAN"]
[3,"POPESCU EMIL",3,"VLASE ADRIAN",3,"ACATRINEI IONUT",3,"BIRLESCU GHEORGHE"]
[4,"MOSCU ALEXANDRU",4,"IORDACHE BOGDAN",4,"BOANCA DANIEL",4,"BUZDEA CONSTANTIN"]
[5,"COBZARIU ALEX.-JR.",5,"LUCHIANOV FILIP",5,"ACATRINEI ANDREI-JR.",5,"BAICU DANIEL"]
[6,null,6,"BOTEZ BOGDAN",6,null,6,"STEFAN ALEXANDRU"]
[7,null,7,"SPINU FLORIS-JR.",7,null,7,"AUNGURENCEI MIRCEA-JR."]
[]
[]
["5.ADAMOS BRASS",null,"6.POLITEHNICA",null,"7.MYTHOS",null,"8.BONA EVENTUS"]
[1,"ADAMACHE GHEORGHE",1,"IONESCU DAVID",1,"PATRAS VICTOR",1,"SIPOTEANU CORNELIU"]
[2,"BARBUS DUMITRU",2,"COSTIN BOGDAN",2,"OBADA LACRAMIOARA",2,"RASCANU DAN"]
[3,"NEGRU GHEORGHE",3,"CAZANEL EDUARD",3,"ENASESCU EDUARD",3,"VILCU CATALIN"]
[4,"VALERIU VASILE",4,"CRUDU NICU",4,"PATRAS ANTON",4,"MOGA VIOREL"]
[5,"SANDU MARIUS",5,"MATCOVICI STEFAN",5,"ROSU MIHAI",5,"PLAMADA LUCIAN"]
[6,"ESANU MIHAI",6,"COVALCIUC LUCA-JR.",6,"ENASESCU VLAD-JR.",6,"CHIRCA RIANA-JR."]
[7,"BURGUGIU EDUARD-JR.",7,null,7,null,7]
[]
[]
["9.TOPSPIN ARENA 2",null,"10.EMIL OIL",null,"11.MR.PONG 3",null,"12.EUROMOTOR"]
[1,"HAMZA RAZVAN",1,"IONESCU EMIL",1,"CIOLPAN DORU",1,"BARCA ALEXANDRU"]
[2,"PASLARIU LUCIAN",2,"FRINCU EUSEBIU",2,"CIOBANU CIPRIAN",2,"DRAGAN IOAN"]
[3,"DOLHASCU BOGDAN",3,"NAMOLOVAN CALIN",3,"PANAINTE TIBERIU",3,"GHEORGHIU BOGDAN"]
[4,"CONSTANTIN RADU",4,"CRETU BOGDAN",4,"EVA DRAGOS",4,"COLACEL CORNEL"]
[5,"TUCALIUC MIHAI",5,"TEMES ROBERT-JR.",5,"ANDON MARIAN",5,"MAZAPA GELU"]
[6,"DURAC COSMIN",6,null,6,"PANAINTE MIHAI-JR.",6]
[7,null,7,null,7,null,7]
[]
[]
["13.FOUR TEAM",null,"14.GOODFELLAS",null,"15.VIPER",null,"16.DELTA PLAN"]
[1,"MIHALACHE MIHAI",1,"PASAT TIBERIU",1,"COSTACHIOAIE RADU",1,"BUTNARU BOGDAN"]
[2,"LABAR ADRIAN",2,"RECEAN SERGIU",2,"PODINA GABRIEL",2,"IONESCU VLAD"]
[3,"DIACONU OVIDIU",3,"PAVEL GABRIEL",3,"PARPAUTA REMUS",3,"MIHAI COSMIN"]
[4,"POPA SEBASTIAN",4,"LAZAR LUCIAN",4,"NECULA MARIUS",4,"CIOLAN MARIAN"]
[5,null,5,"SOLTAN SERGHEI",5,"TUDOR OVIDIU",5,"RUSU BOGDAN-JR."]
[6,null,6,"KRISTO ROBERT",6,"ROTARU ALEXANDRU",6]
[7,null,7,null,7,null,7]
[]
[]
["Last Updated on Monday, 02 March 2015 09:17"]

{"sheet":"Players League 5","index":8,"n_rows":113,"n_cols":8,"rows_kept":113,"cut":false,"hidden":false,"merged":[]}
["Login"]
["Username"]
["Password"]
["Remember Me"]
["Forgot your password?"]
["Forgot your username?"]
["Create an account"]
["TenisDeMasaIasi.ro"]
["Campionatul Judetean"]
["Liga I"]
["Echipe"]
["Clasament"]
["Etape"]
["Jucatori"]
["Liga II"]
["Echipe"]
["Clasament"]
["Etape"]
["Jucatori"]
["Liga III"]
["Echipe"]
["Clasament"]
["Etape"]
["Jucatori"]
["Liga IV"]
["Echipe"]
["Clasament"]
["Etape"]
["Jucatori"]
["Liga V"]
["Echipe"]
["Clasament"]
["Etape"]
["Jucatori"]
["Arbitri"]
["Media"]
["ITTF TV LIVE"]
["Forum"]
["Recent Topics"]
["Search"]
["Derby Liga I"]
["IASY TROPHY-MEMORIALUL CORNEL MACOVEI"]
["  IASY TROPHY-MEMORIALUL CORNEL MACOVEI. Competitia este organizata de CSM Iasi..."]
["Iasi Open - Finala"]
["Iasi Open - Turneul Cartierelor"]
["Eliza Samara Iasi"]
["     "]
["Acum si pe Facebook"]
["Acum suntem si pe Facebook: https://www.facebook.com/tenis.iasi.7    "]
["Jucatori Transferabili"]
["      JUCATORI TRANSFERABILI - LIGA I   1.ADAM  MIHAI - MR.PONG 2.BA..."]
["Lista Juniori"]
["    JUNIORI 1.TIPU VLAD - NICODENT 2.NASTASA SERGIU - KAUFLAND 3.SUMANAR..."]
["DREPTURI DE EDITARE"]
["Daca doriti sa va editati datele de jucator sau datele cubului, imi trimiteti un mesaj pe privat cu ..."]
["AVERTISMENT"]
["Va rog nu faceti reclama in datele clubului sau ale jucatorului."]
["Previous Next"]
["Derby Liga I"]
["IASY TROPHY-MEMORIALUL CORNEL MACOVEI"]
["Iasi Open - Finala"]
["Iasi Open - Turneul Cartierelor"]
["Eliza Samara Iasi"]
["Acum si pe Facebook"]
["Jucatori Transferabili"]
["Lista Juniori"]
["DREPTURI DE EDITARE"]
["AVERTISMENT"]
["Jucatori Liga V","PDF","Print","E-mail"]
["Written by Administrator   "]
["Friday, 18 October 2013 09:42"]
[]
[]
["1.LUCEAFARUL",null,"2.CROSSFIRE",null,"3.CSM IASI",null,"4.FOLHA SECA"]
[1,"PETRACHE MADALIN",1,"ZVORISTEANU IRINA",1,"COBZARIU DENISA",1,"SANDU EMILIAN"]
[2,"ILUCA ALEXANDRU",2,"BOMBEA DELIA",2,"AUNGURENCEI MIRUNA",2,"ABOAICE IONUT"]
[3,"PETRACHE VASILE",3,"BOMBEA ALINA",3,"TIRON AMALIA",3,"CIOBOTARU LAURA"]
[4,"HALUNGA VLAD",4,"MATRESCU BIANCA",4,"DUDUMAN STEFANA",4,"TATARU CODRIN"]
[5,null,5,"ZVORISTEANU TEODORA",5,null,5,"SANDU VASILE"]
[6,null,6,null,6,null,6]
[]
[]
[]
["5.INFO RITUS",null,"6.PETRU PONI",null,"7.GABRIELA FARM",null,"8.ESPLANADA"]
[1,"GHIUR LAURENTIU",1,"GRIGORAS RAZVAN",1,"RUSU VALERIAN",1,"VASILIU BOGDAN"]
[2,"GHILAN STEFAN",2,"DOGARU LAURENTIU",2,"CRISTEA DORIN",2,"GHITA DOREL"]
[3,"BANTU COSMIN",3,"HUGEANU MONICA",3,"CHIRILA DAN",3,"AVARVAREI CATALIN"]
[4,"LESENCIUC VLAD",4,"CHIRILEANU TEODOR",4,"POTORAC EUGEN",4,"MUNTEANU CRISTIAN"]
[5,null,5,null,5,"LUPU ADRIAN",5,"PLUMB STEFAN"]
[6,null,6,null,6,null,6]
[]
[]
[]
["9.CLUBUL PRESEI",null,"10.SERGINIO",null,"11.MR.PONG 4",null,"12.Mc DONALD'S"]
[1,"AGAFITEI IONUT",1,"STEFAN SERGIU",1,"BEJINARIU VALENTIN",1,"DASCALESCU VICTOR"]
[2,"MELINTE FLORIN",2,"LACATUSU LUCA",2,"BUTNARU BIANCA",2,"CIORTESCU MIHAI"]
[3,"CATARAMA LIVIU",3,"NANTU ALEXANDRU",3,"PATRAS CLAUDIU",3,"SUSANU ROBERT"]
[4,"ASOFIEI CATALIN",4,"DOULAMIS HRISTOS",4,"MUZICESCU GABRIEL",4,"GEORGESCU MIHNEA"]
[5,"MACIUCA CRISTIAN",5,"ABAICEANU ADRIAN",5,null,5]
[6,null,6,null,6,null,6]
[]
[]
[]
["13.COM-VAL 3",null,"14.SORIDENT"]
[1,"ODAGERIU ADRIAN",1,"ANDRIAN SORIN"]
[2,"CEARDAS MIHAI",2,"TEMNEANU PASTOREL"]
[3,"MERTIC ALEXANDRU",3,"PANTAZIEV ALEXANDRU"]
[4,"BOT CATALIN",4,"GRIGORAS ANDREI"]
[5,"MELINTE GABRIEL",5,"GRIGORAS TEODOR"]
[6,null,6]
[]
[]
["Last Updated on Monday, 23 February 2015 15:44"]

{"sheet":"Backup Jucatori","index":9,"n_rows":405,"n_cols":3,"rows_kept":405,"cut":false,"hidden":true,"merged":[]}
["Liga","Echipa","Nume Jucator"]
["I","ISPAL","ZVORISTEANU CRISTIAN"]
["I","ISPAL","JALBA STELIAN"]
["I","ISPAL","POSTUDOR ANDREEA"]
["I","ISPAL","BURCA ANDREI"]
["I","ISPAL","JALBA VLAD"]
["I","ISPAL","SANDU ILIE"]
["I","KAUFLAND","ANTON CRISTIAN"]
["I","KAUFLAND","PARFENE RARES"]
["I","KAUFLAND","NASTASA SERGIU"]
["I","KAUFLAND","CIOLAN VLAD"]
["I","CLEOPATRA","BULARDA IULIAN"]
["I","CLEOPATRA","DAVID DORIN"]
["I","CLEOPATRA","CALIN MIHAI"]
["I","CLEOPATRA","CORCOZ COSTIN"]
["I","CLEOPATRA","DAVID MADALINA"]
["I","GIROS COMPANY","CIOBOTARU OVIDIU"]
["I","GIROS COMPANY","PARASCUTA DANIEL"]
["I","GIROS COMPANY","AXINTE BOGDAN"]
["I","DISCRET","CRAMBA CRISTINEL"]
["I","DISCRET","MARTINAS MARIUS"]
["I","DISCRET","VILCU ADRIAN"]
["I","DISCRET","SIRETEANU ALEXANDRU"]
["I","DISCRET","MANOLACHI MIHAELA"]
["I","DISCRET","LUNTRARU ANDREI"]
["I","MOBIL SERVICE","CONSTANTINESCU DAN"]
["I","MOBIL SERVICE","VASILACHE SEBASTIAN"]
["I","MOBIL SERVICE","MORARIU MIRCEA"]
["I","MOBIL SERVICE","TIRON MARIAN"]
["I","MOBIL SERVICE","SIMON TEODOR"]
["I","STIINTA MIROSLAVA","STEREA VIOREL"]
["I","STIINTA MIROSLAVA","ALBU VLAD"]
["I","STIINTA MIROSLAVA","PREDA IONUT"]
["I","STIINTA MIROSLAVA","SIMON CSABA"]
["I","STIINTA MIROSLAVA","SIMION BOGDAN"]
["I","STIINTA MIROSLAVA","COROIU ANDREI"]
["I","MR.PONG","ONISEI FLORIN"]
["I","MR.PONG","SURDU MARCEL"]
["I","MR.PONG","STIRBU ANDREI"]
["I","MR.PONG","LITOVCENCO GHEORGHE"]
["I","MR.PONG","DUBROVIN VENEAMIN"]
["I","AEROPORTUL","CARAIMAN IONEL"]
["I","AEROPORTUL","MALIMPENSA DAVIDE"]
["I","AEROPORTUL","SAVA MIHAI SORIN"]
["I","AEROPORTUL","BAIU LACRAMIOARA"]
["I","MAX SATELIT","CIOBOTARU GHEORGHE"]
["I","MAX SATELIT","GAFTEA MARIA"]
["I","MAX SATELIT","POSTUDOR BOGDAN"]
["I","MAX SATELIT","AGA ALEXANDRU"]
["I","MAX SATELIT","MIROIU VERGINICA"]
["I","MOLID ","DARIE VIRGIL"]
["I","MOLID ","CARPOVICI BORIS"]
["I","MOLID ","COZMA CATALIN"]
["I","MOLID ","MOSNEAGU MARIUS"]
["I","MOLID ","ROMAN IULIAN"]
["I","CLUB ARMONY","BERESCU GHEORGHE"]
["I","CLUB ARMONY","ACATRINEI DANIEL"]
["I","CLUB ARMONY","BAIU CONSTANTIN"]
["I","MADO","HORHOTA VICTOR"]
["I","MADO","CALENCIUC DUMITRU"]
["I","MADO","DOLTU MIHAI"]
["I","T.C. TG.FRUMOS","CIUREA ANDREI"]
["I","T.C. TG.FRUMOS","INICERU GEORGE"]
["I","T.C. TG.FRUMOS","PAVEL BOGDAN"]
["I","T.C. TG.FRUMOS","CRETU FLORIN"]
["II","TOPAZ","POPESCU CARMEN"]
["II","TOPAZ","PALAGA FLORIN"]
["II","TOPAZ","BONDOR GEORGE"]
["II","TOPAZ","FETCU CRISTIAN"]
["II","LIONS","GRIGOROVICI ALEXANDRU"]
["II","LIONS","CALIN ALINA IONELA"]
["II","LIONS","DABIJA RAZVAN"]
["II","LIONS","CHIPERI STEFAN"]
["II","TEAM X-TREME","CIUBOTARU LEONAS"]
["II","TEAM X-TREME","CUDRIC ANDREI"]
["II","TEAM X-TREME","OGRINJI NICOLAE"]
["II","TEAM X-TREME","CHITIC PAUL"]
["II","TEAM X-TREME","SALARI MIHAI"]
["II","TEAM X-TREME","BOUREANU IONEL"]
["II","TOPSPIN ARENA","IACOB GABRIEL"]
["II","TOPSPIN ARENA","BALAN ALEXANDRU"]
["II","TOPSPIN ARENA","BATRINU VLAD"]
["II","TOPSPIN ARENA","GASNER PAUL"]
["II","TOPSPIN ARENA","ALEXIU ANDREI"]
["II","TOPSPIN ARENA","CIUBOTARIU CLAUDIU"]
["II","TOPSPIN ARENA","MUNTEANU OCTAVIAN"]
["II","MILLION","MANTA VLAD"]
["II","MILLION","CALANCEA DUMITRU"]
["II","MILLION","FILIMON VALERICA"]
["II","MILLION","COVALCIUC BOGDAN"]
["II","MILLION","GHILAN DAN"]
["II","MILLION","CRICLEVITZ LIVIU"]
["II","MILLION","IRIMIA SORIN"]
["II","COM-VAL","MIHAI CRISTIAN"]
["II","COM-VAL","UNGUREANU DANUT"]
["II","COM-VAL","MUNTEANU FLORIN"]
["II","COM-VAL","ALBU GHEORGHE"]
["II","COM-VAL","FRUMOASA GHEORGHE"]
["II","TEHNOPRES","JAPA COSTICA"]
["II","TEHNOPRES","APOSTOL LUCIAN"]
["II","TEHNOPRES","SACAGIU RADU"]
["II","TEHNOPRES","CIOBANU MARIUS"]
["II","TEHNOPRES","ZAHARIA IONUT"]
["II","TEHNOPRES","STEGARU FLAVIAN"]
["II","BITDEFENDER","AXINTE TIBERIUS"]
["II","BITDEFENDER","BIBER ADRIAN"]
["II","BITDEFENDER","POPESCU DAN"]
["II","BITDEFENDER","PREDA LIVIU"]
["II","BITDEFENDER","URSU IRINEL"]
["II","STARLIFE","IORGA GHEORGHE"]
["II","STARLIFE","ISAC DANA"]
["II","STARLIFE","CONDREA EMIL"]
["II","STARLIFE","SCANTEIANU RAZVAN"]
["II","STARLIFE","ROMILA EMIL"]
["II","STARLIFE","MACARI ION"]
["II","POMPIERII","MELINTE GABRIEL"]
["II","POMPIERII","TUGUI DAN"]
["II","POMPIERII","DRAGOMAN VASILE"]
["II","POMPIERII","NICULITA SORIN"]
["II","POMPIERII","MOLDOVAN VIOREL"]
["II","POMPIERII","LUNTRARU MIHAI"]
["II","IASICON","ALUPOAIE DUMITRU"]
["II","IASICON","PINTILIE VLAD"]
["II","IASICON","FLORIA IULIAN"]
["II","IASICON","MARCU RARES"]
["II","IASICON","ISAC DANIEL"]
["II","IASICON","DOBRINCU VLAD"]
["II","MR.PONG 2","STEFAN DAN"]
["II","MR.PONG 2","MORARU EUGEN"]
["II","MR.PONG 2","FARAON ROBERT"]
["II","MR.PONG 2","VINACHI VALENTIN"]
["II","MR.PONG 2","ANDON MARIAN"]
["II","AZT","LITCANU KLAUDYU"]
["II","AZT","DIRVARU VALENTIN"]
["II","AZT","HOCIUNG CIPRIAN"]
["II","AZT","INSURATELU PETRU"]
["II","AZT","SUMULEA MIHAI"]
["II","SIMAR ERBICENI","CRIVEI CLAUDIU"]
["II","SIMAR ERBICENI","GHERASIM FLORIN"]
["II","SIMAR ERBICENI","STEFANACHE DUMITRU"]
["II","SIMAR ERBICENI","STEFANACHE EMIL"]
["II","SIMAR ERBICENI","HABAGERIU EUGEN"]
["II","SIMAR ERBICENI","TIGANISTEANU ADRIAN"]
["II","TEAM CONTI","PATRASCU DANIEL"]
["II","TEAM CONTI","PATRASCU CRISTIAN"]
["II","TEAM CONTI","IPATE GIOVANI"]
["II","TEAM CONTI","COCEA CATALIN"]
["II","TEAM CONTI","BAGEAG CRISTIAN"]
["II","NETINVEST","GHIORGHIU DRAGOS"]
["II","NETINVEST","MUNTEANU LARENTIU"]
["II","NETINVEST","COSTACHESCU C-TIN"]
["II","NETINVEST","POSTU ADRIAN"]
["III","PALATUL COPIILOR","POPA ANDREEA"]
["III","PALATUL COPIILOR","TIPU VLAD"]
["III","PALATUL COPIILOR","STEFAN ALEXANDRU"]
["III","PALATUL COPIILOR","SUMANARU CATALIN"]
["III","PALATUL COPIILOR","COTILICI ANA MARIA"]
["III","PALATUL COPIILOR","CIUBOTARU CARMEN"]
["III","PALATUL COPIILOR","POPA IOANA-JR."]
["III","HIGH TECH","BOMBEA CATALIN"]
["III","HIGH TECH","CHIRA IULIAN"]
["III","HIGH TECH","BURLACU ANDREI"]
["III","HIGH TECH","GALATANU CATALIN"]
["III","HIGH TECH","TANASE DAN"]
["III","HIGH TECH","BOMBEA DORIN-JR."]
["III","PESCARII","COTELEA IONEL"]
["III","PESCARII","IACOB IONUT"]
["III","PESCARII","PARFENE IULIAN"]
["III","PESCARII","PADURARU CATALIN"]
["III","PESCARII","VRINCEANU VALENTIN"]
["III","PESCARII","CISLARIU ANGEL-JR."]
["III","C.C.TG. FRUMOS","GREBINISAN MARIAN"]
["III","C.C.TG. FRUMOS","ANDRIES DORU"]
["III","C.C.TG. FRUMOS","STRACHINA DAN"]
["III","C.C.TG. FRUMOS","CRISU CONSTANTIN"]
["III","C.C.TG. FRUMOS","FILIP MARIUS"]
["III","C.C.TG. FRUMOS","PRICOPE CATALIN"]
["III","C.C.TG. FRUMOS","NASTACA SORIN-JR."]
["III","PIRANHA","DOBRE DAN DORU"]
["III","PIRANHA","SAVA RADU"]
["III","PIRANHA","BUNDUC VASILE"]
["III","PIRANHA","TANASE STEFAN"]
["III","PIRANHA","FILIMON GABRIEL"]
["III","PIRANHA","COAJA ANDREI"]
["III","ACVILA","NICU CONSTANTIN"]
["III","ACVILA","ALBU CATALIN"]
["III","ACVILA","FILIP GERARD"]
["III","ACVILA","PRECU SERGIU"]
["III","ACVILA","MAHU BOGDAN"]
["III","ACVILA","VILCU MATEI-JR."]
["III","RED SCORPIONS ","CIORTESCU CRISTIAN"]
["III","RED SCORPIONS ","HUNEA LUCIAN"]
["III","RED SCORPIONS ","ISAC IONUT"]
["III","RED SCORPIONS ","PELIN DUMITRU"]
["III","RED SCORPIONS ","GANCIRIUC SILVIU"]
["III","RED SCORPIONS ","MICULESCU ALEX-JR."]
["III","COM-VAL 2","MOCANU COSTEL"]
["III","COM-VAL 2","POCNET VLAD"]
["III","COM-VAL 2","HREHORCIUC MIRCEA"]
["III","COM-VAL 2","DASCALITA STEFAN"]
["III","COM-VAL 2","BADARAU EMANOIL"]
["III","COM-VAL 2","BOTEZ VALERIU"]
["III","COM-VAL 2","MUNTEANU MIHAI-JR."]
["III","RAR","CAUTIS DORIN"]
["III","RAR","NENESTEAN RAUL"]
["III","RAR","SDROBIS VIOREL"]
["III","RAR","NASTASE VINTILA"]
["III","RAR","DUMITRIU FLORIN"]
["III","RATONII","AFTENE IULIAN"]
["III","RATONII","BUDAU MARIUS"]
["III","RATONII","LAZAR LUCIAN"]
["III","RATONII","BANU ADRIAN"]
["III","RATONII","VAPIROVSCHI VICTOR"]
["III","RATONII","CIUBOTARU ROBERT-JR."]
["III","INITA","TUCALIUC VLAD"]
["III","INITA","CIRLIGEANU ALEXANDRU"]
["III","INITA","NEAGU MIRCEA"]
["III","INITA","DOBRINCU DAN"]
["III","INITA","GARABET DAN"]
["III","INITA","STEFAN ANDREI-JR."]
["III","CLUB CFR","CHIRCA TIBERIU"]
["III","CLUB CFR","BUZDUGAN IUSTIN"]
["III","CLUB CFR","GRADINARIU DOREL"]
["III","CLUB CFR","ALBU CLAUDIA"]
["III","CLUB CFR","VINULESCU GHEORGHE"]
["III","CLUB CFR","DRAGAN CATALIN"]
["III","NINA STUDIO","RAUTU VALENTIN"]
["III","NINA STUDIO","MARTINAS IOAN"]
["III","NINA STUDIO","POMARLEANU RADU"]
["III","NINA STUDIO","BOUREANU CONSTANTIN"]
["III","AZT 2","BARBOSU CATALIN"]
["III","AZT 2","BARBOSU CLAUDIU"]
["III","AZT 2","BALANESCU FLORIN"]
["III","AZT 2","URSACHE IONEL"]
["III","AZT 2","ROMANESCU C-TIN"]
["III","AZT 2","BACALU VALENTIN"]
["III","CRIS CRISCO","PAVAL MIHAI"]
["III","CRIS CRISCO","CIOANCA AURELIAN"]
["III","CRIS CRISCO","LUPASCU CONSTANTIN"]
["III","CRIS CRISCO","MARDARE DAN "]
["III","CRIS CRISCO","DUNGA REMUS"]
["III","CRIS CRISCO","CARPOVICI SERGIU"]
["III","CRIS CRISCO","PAULET BOGDAN-JR."]
["III","FORNETTI","DOBRESANCIUC PAUL"]
["III","FORNETTI","TIRZIMAN CATALIN"]
["III","FORNETTI","ROMAN ALEXANDRU"]
["III","FORNETTI","BENGHIAC MIHAI"]
["III","FORNETTI","STANCIU CONSTANTIN"]
["III","FORNETTI","BUCISCANU GABRIEL"]
["III","FORNETTI","TIRZIMAN CEZAR-JR."]
["IV","POSTA ROMANA","COBZARIU EMANUEL"]
["IV","POSTA ROMANA","TINTEA CONSTANTIN"]
["IV","POSTA ROMANA","POPESCU EMIL"]
["IV","POSTA ROMANA","MOSCU ALEXANDRU"]
["IV","POSTA ROMANA","COBZARIU ALEX.-JR."]
["IV","ALILA","TUDORACHE DRAGOS"]
["IV","ALILA","PARPAUTA GABRIEL"]
["IV","ALILA","STANCU ALEXANDRU"]
["IV","ALILA","IORDACHE BOGDAN"]
["IV","ALILA","LUCHIANOV FILIP"]
["IV","ALILA","BOTEZ BOGDAN"]
["IV","ALILA","SPINU FLORIS-JR."]
["IV","SHAORMA KING","CHEHAB ZAKI"]
["IV","SHAORMA KING","MOROSANU SILVIU"]
["IV","SHAORMA KING","ACATRINEI IONUT"]
["IV","SHAORMA KING","BOANCA DANIEL"]
["IV","SHAORMA KING","ACATRINEI ANDREI-JR."]
["IV","YAKUYU SHITAWA","AUNGURENCEI OVIDIU"]
["IV","YAKUYU SHITAWA","ADUMITROAIE CIPRIAN"]
["IV","YAKUYU SHITAWA","BIRLESCU GHEORGHE"]
["IV","YAKUYU SHITAWA","BUZDEA CONSTANTIN"]
["IV","YAKUYU SHITAWA","BAICU DANIEL"]
["IV","YAKUYU SHITAWA","STEFAN ALEXANDRU"]
["IV","YAKUYU SHITAWA","AUNGURENCEI MIRCEA-JR."]
["IV","DEMETRELA","ADAMACHE GHEORGHE"]
["IV","DEMETRELA","BARBUS DUMITRU"]
["IV","DEMETRELA","NEGRU GHEORGHE"]
["IV","DEMETRELA","VALERIU VASILE"]
["IV","DEMETRELA","SANDU MARIUS"]
["IV","DEMETRELA","ESANU MIHAI"]
["IV","DEMETRELA","BURGUGIU EDUARD-JR."]
["IV","POLITEHNICA","IONESCU DAVID"]
["IV","POLITEHNICA","COSTIN BOGDAN"]
["IV","POLITEHNICA","CAZANEL EDUARD"]
["IV","POLITEHNICA","CRUDU NICU"]
["IV","POLITEHNICA","MATCOVICI STEFAN"]
["IV","POLITEHNICA","COVALCIUC LUCA-JR."]
["IV","MYTHOS","PATRAS VICTOR"]
["IV","MYTHOS","VELNITA STEFAN"]
["IV","MYTHOS","ENASESCU EDUARD"]
["IV","MYTHOS","PATRAS ANTON"]
["IV","MYTHOS","ROSU MIHAI"]
["IV","MYTHOS","ENASESCU VLAD-JR."]
["IV","BONA EVENTUS","SIPOTEANU CORNELIU"]
["IV","BONA EVENTUS","RASCANU DAN"]
["IV","BONA EVENTUS","VILCU CATALIN"]
["IV","BONA EVENTUS","MOGA VIOREL"]
["IV","BONA EVENTUS","PLAMADA LUCIAN"]
["IV","TOPSPIN ARENA 2","HAMZA RAZVAN"]
["IV","TOPSPIN ARENA 2","PASLARIU LUCIAN"]
["IV","TOPSPIN ARENA 2","DOLHASCU BOGDAN"]
["IV","TOPSPIN ARENA 2","CONSTANTIN RADU"]
["IV","TOPSPIN ARENA 2","TUCALIUC MIHAI"]
["IV","TOPSPIN ARENA 2","DURAC COSMIN"]
["IV","EMIL OIL","IONESCU EMIL"]
["IV","EMIL OIL","FRINCU EUSEBIU"]
["IV","EMIL OIL","NAMOLOVAN CALIN"]
["IV","EMIL OIL","CRETU BOGDAN"]
["IV","EMIL OIL","TEMES ROBERT-JR."]
["IV","MR.PONG 3","CIOLPAN DORU"]
["IV","MR.PONG 3","CIOBANU CIPRIAN"]
["IV","MR.PONG 3","PANAINTE TIBERIU"]
["IV","MR.PONG 3","VLASE ADRIAN"]
["IV","MR.PONG 3","EVA DRAGOS"]
["IV","MR.PONG 3","PANAINTE MIHAI-JR."]
["IV","EUROMOTOR","BARCA ALEXANDRU"]
["IV","EUROMOTOR","DRAGAN IOAN"]
["IV","EUROMOTOR","GHEORGHIU BOGDAN"]
["IV","EUROMOTOR","COLACEL CORNEL"]
["IV","EUROMOTOR","MAZAPA GELU"]
["IV","SPALATORIA DEMO","MIHALACHE MIHAI"]
["IV","SPALATORIA DEMO","LABAR ADRIAN"]
["IV","SPALATORIA DEMO","DIACONU OVIDIU"]
["IV","SPALATORIA DEMO","POPA SEBASTIAN"]
["IV","GOODFELLAS","PASAT TIBERIU"]
["IV","GOODFELLAS","RECEAN SERGIU"]
["IV","GOODFELLAS","PAVEL GABRIEL"]
["IV","GOODFELLAS","CAMPEANU VLAD"]
["IV","GOODFELLAS","SOLTAN SERGHEI"]
["IV","GOODFELLAS","KRISTO ROBERT"]
["IV","CLUB VIPER","COSTACHIOAIE RADU"]
["IV","CLUB VIPER","PODINA GABRIEL"]
["IV","CLUB VIPER","PARPAUTA REMUS"]
["IV","CLUB VIPER","NECULA MARIUS"]
["IV","CLUB VIPER","TUDOR OVIDIU"]
["IV","CLUB VIPER","ROTARU ALEXANDRU"]
["IV","DELTA PLAN","BUTNARU BOGDAN"]
["IV","DELTA PLAN","IONESCU VLAD"]
["IV","DELTA PLAN","MIHAI COSMIN"]
["IV","DELTA PLAN","CIOLAN MARIAN"]
["IV","DELTA PLAN","RUSU BOGDAN-JR."]
["V","LUCEAFARUL","PETRACHE MADALIN"]
["V","LUCEAFARUL","ILUCA ALEXANDRU"]
["V","LUCEAFARUL","PETRACHE VASILE"]
["V","LUCEAFARUL","HALUNGA VLAD"]
["V","CROSSFIRE","ZVORISTEANU IRINA"]
["V","CROSSFIRE","BOMBEA DELIA"]
["V","CROSSFIRE","BOMBEA ALINA"]
["V","CROSSFIRE","MATRESCU BIANCA"]
["V","CROSSFIRE","ZVORISTEANU TEODORA"]
["V","CSM IASI","COBZARIU DENISA"]
["V","CSM IASI","CHIRCA RIANA"]
["V","CSM IASI","TIRON AMALIA"]
["V","CSM IASI","DUDUMAN STEFANA"]
["V","CSM IASI","AUNGURENCEI MIRUNA"]
["V","FOLHA SECA","SANDU EMILIAN"]
["V","FOLHA SECA","ABOAICE IONUT"]
["V","FOLHA SECA","CIOBOTARU LAURA"]
["V","FOLHA SECA","TATARU CODRIN"]
["V","FOLHA SECA","SANDU VASILE"]
["V","INFO RITUS","GHIUR LAURENTIU"]
["V","INFO RITUS","GHILAN STEFAN"]
["V","INFO RITUS","BANTU COSMIN"]
["V","INFO RITUS","LESENCIUC VLAD"]
["V","PETRU PONI","GRIGORAS RAZVAN"]
["V","PETRU PONI","DOGARU LAURENTIU"]
["V","PETRU PONI","HUGEANU MONICA"]
["V","PETRU PONI","CHIRILEANU TEODOR"]
["V","GABRIELA FARM","RUSU VALERIAN"]
["V","GABRIELA FARM","CRISTEA DORIN"]
["V","GABRIELA FARM","CHIRILA DAN"]
["V","GABRIELA FARM","POTORAC EUGEN"]
["V","GABRIELA FARM","LUPU ADRIAN"]
["V","ESPLANADA","VASILIU BOGDAN"]
["V","ESPLANADA","GHITA DOREL"]
["V","ESPLANADA","AVARVAREI CATALIN"]
["V","ESPLANADA","MUNTEANU CRISTIAN"]
["V","ESPLANADA","PLUMB STEFAN"]
["V","CLUBUL PRESEI","AGAFITEI IONUT"]
["V","CLUBUL PRESEI","MELINTE FLORIN"]
["V","CLUBUL PRESEI","CATARAMA LIVIU"]
["V","CLUBUL PRESEI","ASOFIEI CATALIN"]
["V","CLUBUL PRESEI","MACIUCA CRISTIAN"]
["V","SERGINIO","STEFAN SERGIU"]
["V","SERGINIO","LACATUSU LUCA"]
["V","SERGINIO","NANTU ALEXANDRU"]
["V","SERGINIO","DOULAMIS HRISTOS"]
["V","MR.PONG 4","BEJINARIU VALENTIN"]
["V","MR.PONG 4","BUTNARU BIANCA"]
["V","MR.PONG 4","PATRAS CLAUDIU"]
["V","MR.PONG 4","MUZICESCU GABRIEL"]
["V","Mc DONALD'S","DASCALESCU VICTOR"]
["V","Mc DONALD'S","CIORTESCU MIHAI"]
["V","Mc DONALD'S","SUSANU ROBERT"]
["V","Mc DONALD'S","GEORGESCU MIHNEA"]
["V","COM-VAL 3","ODAGERIU ADRIAN"]
["V","COM-VAL 3","CEARDAS MIHAI"]
["V","COM-VAL 3","MERTIC ALEXANDRU"]
["V","COM-VAL 3","BOT CATALIN"]
["V","COM-VAL 3","MELINTE GABRIEL"]
["V","SORIDENT","ANDRIAN SORIN"]
["V","SORIDENT","TEMNEANU PASTOREL"]
["V","SORIDENT","PANTAZIEV ALEXANDRU"]
["V","SORIDENT","GRIGORAS ANDREI"]
["V","SORIDENT","GRIGORAS TEODOR"]